Workbook

Sheet Farm Information
E1: IS1
B2: ="Cash Flow Analysis Tool" -> Cash Flow Analysis Tool
B4: Farm Name | D4: =IF(NOT(ISBLANK(C4)),C4,IF(NOT(ISBLANK(C5)),C5,"")) -> 
B5: Owner's Name
B6: Street
B7: City | C7: =IFERROR(VLOOKUP(TEXT(C9,"00000"),zipcodes!A:D,2,FALSE),) -> 0
B8: State | C8: =IFERROR(VLOOKUP(TEXT(C9,"00000"),zipcodes!A:D,3,FALSE),) -> 0 | D8: =IF(NOT(ISBLANK(C4)),C4,IF(NOT(ISBLANK(C5)),C5,"")) -> 
B9: Zip Code
B10: Business Phone
B11: Cell Phone
B12: E-Mail
B13: County | C13: =IFERROR(VLOOKUP(TEXT(C9,"00000"),zipcodes!A:D,4,FALSE),) -> 0
B15: Person Submitting Form
B16: E-Mail of Person Submitting
B17: Phone of Person Submitting Form
B19: Primary Breed
B20: Nutrition Company
B21: Farm Nutritionist
B22: E-Mail Address to Submit Data
B23: Farm Number (Internal Use)
B24: Electrical Power Source
B26: Milk Processor
B27: Production System
B29: Authors: Virginia Ishler, Tim Beck, Ken Bailey, Rob Goodling, Rebecca White, Keith Dickinson, and Heather Weeks
B72: Start of Lookup Drop Downs
B73: Breed | C73: Nutritionist
B74: Ayrshire | C74: Feed Company Representative
B75: Brown Swiss | C75: Independent Consultant | D75: =IF(E1>0,"Version: "&E1,)&", "&TEXT(D1,"mm/dd/yy") -> Version: IS1, 01/00/00
B76: Crossbred | C76: Other
B77: Guernsey | C77: Self | D77: =IF(LEN(C1)>0,"Version: "&C1,)&" "&TEXT(D1,"mm/dd/yyyy") -> 01/00/1900
B78: Holstein | C78: Veterinarian
B79: Jersey
B80: Milking Shorthorn | C80: Farm Power
B81: Other | C81: Farm-Generated Power
C82: Off-Farm Purchased Power
B84: Farm Type
B85: Conventional
B86: Organic
A161: 1

Sheet Beginning Balance Sheet
D1: Beginning Balance Sheet | AE1: =YEAR(Y2) -> 1900
D2: Farm Name: | Q2: Dairy | V2: Year:
D3: CURRENT FARM ASSETS | M3: Value | O3: CURRENT FARM LIABILITIES | Z3: Amount
O4: (accounts payable and loans under 1 year term)
D5: Cash and checking balance | O5: Accounts payable:
D6: Prepaid expenses & supplies | M6: =SUM(L7:L11) -> 0 | N6: ①
D12: Growing Crops | N12: ②
D13: Accounts Receivable
D14: =IF(Q2="","",IF(OR(Q2={"Dairy","Livestock"}),"(1/2 Mos. Milk)","(Fresh Apples)")) -> (1/2 Mos. Milk) | N14: ③
D15: Other Current Assets | M15: =SUM(L16:L19) -> 0 | N15: ④
D16: Purchased Feed Inventory | O16: Total accounts payable | Y16: ⑬ | Z16: =SUM(Z5:Z15) -> 0
D17: Supply Inventory (Dairy) | O17: Accrued Interest | Y17: ⑭ | Z17: =SUM(U20:V26,S33:S43,S48:S52) -> 0
D18: Fuel Inventory | O18: CURRENT | P18: Interest | Q18: Principal | U18: Accrued | W18: Princ & Int.
D19: Other Current Assets | O19: LOANS | P19: Rate | Q19: Balance | U19: Interest | W19: Payment | Z19: Balance
D20: =IF(Q2="","",IF(OR(Q2={"Dairy","Livestock"}),"Crop (Feed) Inventory","Fruit or Vegetable Inventory")) -> Crop (Feed) Inventory | I20: Quantity | L20: Value
L21: Per Unit
M22: =I22*L22 -> 0
M23: =I23*L23 -> 0
M24: 0
M25: 0
M26: 0
M27: 0 | O27: Government Crop Loans
M28: 0 | O28: Principal due within 12 months on term liabilities | Z28: =SUM(V33:X43,V48:X52) -> 0
M29: 0 | O29: Total Current Farm Liabilities | Z29: =SUM(Z16,Z17,Z20,Z22,Z23,Z24,Z25,Z26,Z27,Z28) -> 0
D30: ="Subtotal " &D20 -> Subtotal Crop (Feed) Inventory | M30: =SUM(M22,M23,M24,M25,M26,M27,M28,M29) -> 0 | N30: ⑤ | O30: Intermediate Farm Liabilities (Cows and Equipment – term of 1 to 10 years)
D31: =IF(NOT(OR($Q$2={"Dairy","Livestock"})),"","Market Livestock") -> Market Livestock | F31: =IF(D31="","","Number") -> Number | I31: =IF(D31="","","Avg. Weight") -> Avg. Weight | L31: =IF(D31="","","Value Per Unit") -> Value Per Unit | O31: INTERMEDIATE | P31: Interest | Q31: Principal | S31: Accrued | T31: P & I Due | V31: Principal Due | Y31: Final | Z31: Intermediate
O32: LOANS | P32: Rate | Q32: Balance | S32: Interest | Y32: Year | Z32: Balance
M33: =F33*L33 -> 0 | N33: ⑥ | Z33: =Q33-V33 -> 0
D34: Other Current Inventories | Z34: =Q34-V34 -> 0
D35: Total Current Farm Assets | M35: =SUM(M5,M6,M12,M14,M15,M22,M23,M24,M25,M26,M27,M28,M29,M33,M34) -> 0 | Z35: 0
D36: INTERMEDIATE FARM ASSETS | Z36: 0
D37: =IF(NOT(OR($Q$2={"Dairy","Livestock"})),"","Breeding Livestock") -> Breeding Livestock | F37: =IF(D37="","","Number") -> Number | H37: =IF(D37="","","Value/Hd (Cost)") -> Value/Hd (Cost) | J37: =IF(D37="","","Value/Hd (Mkt)") -> Value/Hd (Mkt) | L37: Cost | M37: Market | Z37: 0
L38: Value | M38: Value | Z38: 0
L39: =F39*H39 -> 0 | M39: =F39*J39 -> 0 | Z39: 0
L40: 0 | M40: 0 | Z40: 0
L41: 0 | M41: 0 | Z41: 0
L42: 0 | M42: 0 | Z42: 0
L43: 0 | M43: 0 | Z43: 0
L44: 0 | M44: 0 | O44: Total Intermediate Farm Liabilities | Z44: =SUM(Z33:Z43) -> 0
D45: Subtotal Breeding Livestock | L45: =SUM(L39:L44) -> 0 | M45: =SUM(M39,M40,M41,M42,M43,M44) -> 0 | N45: ⑦ | O45: Long Term Farm Liabilities (Land & Buildings – Term of more than 10 years)
D46: Farm Machinery & Equipt. (include draft horses or mules) | K46: ⑧ | O46: LONG TERM | P46: Interest | Q46: Principal | S46: Accrued | T46: P & I Due | V46: Principal Due | Y46: Final Year | Z46: Long Term
O47: LOANS | P47: Rate | Q47: Balance | S47: Interest | Z47: Balance
D48: Titled Vehicles | K48: ⑨ | Z48: =Q48-V48 -> 0
D49: Fruit Trees to Depreciate | K49: ⑫ | Z49: =Q49-V49 -> 0
D50: Other Intermediate Assets | K50: ⑪ | Z50: =Q50-V50 -> 0
D51: Total Intermediate Farm Assets | L51: =SUM(L39,L40,L41,L42,L43,L44,L46,L48,L49,L50) -> 0 | M51: =SUM(M45,M46,M48,M49,M50) -> 0 | Z51: =Q51-V51 -> 0
D52: LONG TERM FARM ASSETS | Z52: =Q52-V52 -> 0
D53: Item | E53: Acres | H53: Value Per Acre | L53: Cost | M53: Market | O53: Total Long Term Farm Liabilities | Z53: =SUM(Z48:Z52) -> 0
L54: Value | M54: Value
D55: Land | O55: TOTAL FARM LIABILITIES | Z55: =SUM(Z29,Z44,Z53) -> 0
D56: Residence | O56: NON-FARM LIABILITIES
D57: Farm Buildings | K57: ⑩ | O57: NET WORTH CALCULATION: | V57: Cost | Z57: Market
D58: Other Long Term Assets | K58: ⑪ | O58: Total Farm and Non-farm Liabilities | V58: =Z58 -> 0 | Z58: =SUM(Z55+Z56) -> 0
D59: Total Long Term Assets | L59: =SUM(L55:L58) -> 0 | M59: =SUM(M55,M56,M57,M58) -> 0 | O59: Deferred Tax Liabilities
D60: TOTAL FARM ASSETS | L60: =SUM(M35,L51,L59) -> 0 | M60: =SUM(M35,M51,M59) -> 0 | O60: TOTAL LIABILITIES | Z60: =SUM(Z58,Z59) -> 0
D61: NONFARM ASSETS | O61: Retained Earnings / Contributed Capital | V61: =L62-V58 -> 0
D62: TOTAL ASSETS | L62: =SUM(L60,L61) -> 0 | M62: =SUM(M60+M61) -> 0 | O62: NET WORTH | Z62: =M62-Z58-Z59 -> 0
Z65: =L60-Z55 -> 0
Z66: =M60-Z60 -> 0
O220: Seed
O221: Fertilizer
O222: Chemical
O223: Crop Custom Hire
O224: Purchased Feed
O225: Breeding & Registration
O226: Veterinary & Medicine
O227: bST
O228: Supplies
O229: DHIA
O230: Contract Heifer Raising
O231: Dairy Custom Hire
O232: Milk Hauling
O233: Milk Marketing
O234: Bedding
O235: Fuel and oil
O236: Repairs
O237: Land rent
O238: Hired labor, withholding, ins.
O239: Machinery leases
O240: Building leases
O241: Real estate taxes
O242: Farm insurance
O243: Utilities
O244: Risk mgt.& advertizing
O245: Dues and professional fees
O246: Miscellaneous
O247: Family Living/Owner Draw
O248: Income Taxes
O249: Capital Purchases

Sheet Ending Balance Sheet
D1: Ending Balance Sheet
D2: Farm Name: | F2: =IF(ISBLANK('Beginning Balance Sheet'!F2:M2),"",'Beginning Balance Sheet'!F2:M2) ->  | O2: Farm Type: | Q2: =IF(ISBLANK('Beginning Balance Sheet'!Q2:T2),,'Beginning Balance Sheet'!Q2:T2) -> Dairy | V2: Year:
D3: CURRENT FARM ASSETS | M3: Value | O3: CURRENT FARM LIABILITIES | Z3: Amount
O4: (accounts payable and loans under 1 year term)
D5: Cash and checking balance | O5: Accounts payable:
D6: Prepaid expenses & supplies | M6: =SUM(L7:L11) -> 0 | N6: ⑮
D12: Growing Crops | N12: ⑯
D13: Accounts Receivable
D14: =IF(Q2="","",IF(OR(Q2={"Dairy","Livestock"}),"(1/2 Mos. Milk)","(Fresh Apples)")) -> (1/2 Mos. Milk) | N14: ⑰
D15: Other Current Assets | M15: =SUM(L16:L19) -> 0 | N15: ⑱
D16: Purchased Feed Inventory | O16: Total accounts payable | Y16: ㉗ | Z16: =SUM(Z5:Z15) -> 0
D17: Supply Inventory (Dairy) | O17: Accrued Interest | Y17: ㉘ | Z17: =SUM(U20:V26,S33:S43,S48:S52) -> 0
D18: Fuel Inventory | O18: CURRENT | P18: Interest | Q18: Principal | U18: Accrued | W18: Princ & Int.
D19: Other Current Assets | O19: LOANS | P19: Rate | Q19: Balance | U19: Interest | W19: Payment | Z19: Balance
D20: =IF(Q2="","",IF(OR(Q2={"Dairy","Livestock"}),"Crop (Feed) Inventory","Fruit or Vegetable Inventory")) -> Crop (Feed) Inventory | I20: Quantity | L20: Value
L21: Per Unit
M22: =I22*L22 -> 0
M23: =I23*L23 -> 0
M24: 0
M25: 0
M26: 0
M27: 0 | O27: Government Crop Loans
M28: 0 | O28: Principal due within 12 months on term liabilities | Z28: =SUM(V33:X43,V48:X52) -> 0
M29: 0 | O29: Total Current Farm Liabilities | Z29: =SUM(Z16,Z17,Z20,Z22,Z23,Z24,Z25,Z26,Z27,Z28) -> 0
D30: Subtotal Crop (Feed) Inventory | M30: =SUM(M22,M23,M24,M25,M26,M27,M28,M29) -> 0 | N30: ⑲ | O30: Intermediate Farm Liabilities (Cows and Equipment – term of 1 to 10 years)
D31: =IF(NOT(OR($Q$2={"Dairy","Livestock"})),"","Market Livestock") -> Market Livestock | F31: =IF(D31="","","Number") -> Number | I31: =IF(D31="","","Avg. Weight") -> Avg. Weight | L31: =IF(D31="","","Value Per Unit") -> Value Per Unit | O31: INTERMEDIATE | P31: Interest | Q31: Principal | S31: Accrued | T31: P & I Due | V31: Principal Due | Y31: Final | Z31: Intermediate
O32: LOANS | P32: Rate | Q32: Balance | S32: Interest | Y32: Year | Z32: Balance
M33: =F33*L33 -> 0 | N33: ⑳ | Z33: =Q33-V33 -> 0
D34: Other Current Inventories | Z34: =Q34-V34 -> 0
D35: Total Current Farm Assets | M35: =SUM(M5,M6,M12,M14,M15,M22,M23,M24,M25,M26,M27,M28,M29,M33,M34) -> 0 | Z35: 0
D36: INTERMEDIATE FARM ASSETS | Z36: 0
D37: =IF(NOT(OR($Q$2={"Dairy","Livestock"})),"","Breeding Livestock") -> Breeding Livestock | F37: =IF(D37="","","Number") -> Number | H37: =IF(D37="","","Value/Hd (Cost)") -> Value/Hd (Cost) | J37: =IF(D37="","","Value/Hd (Mkt)") -> Value/Hd (Mkt) | L37: Cost | M37: Market | Z37: 0
L38: Value | M38: Value | Z38: 0
L39: =F39*H39 -> 0 | M39: =F39*J39 -> 0 | Z39: 0
L40: 0 | M40: 0 | Z40: 0
L41: 0 | M41: 0 | Z41: 0
L42: 0 | M42: 0 | Z42: 0
L43: 0 | M43: 0 | Z43: 0
L44: 0 | M44: 0 | O44: Total Intermediate Farm Liabilities | Z44: =SUM(Z33:Z43) -> 0
D45: Subtotal Breeding Livestock | L45: =SUM(L39:L44) -> 0 | M45: =SUM(M39,M40,M41,M42,M43,M44) -> 0 | N45: ㉑ | O45: Long Term Farm Liabilities (Land & Buildings – Term of more than 10 years)
D46: Farm Machinery & Equipt. (include draft horses or mules) | K46: ㉒ | O46: LONG TERM | P46: Interest | Q46: Principal | S46: Accrued | T46: P & I Due | V46: Principal Due | Y46: Final Year | Z46: Long Term
O47: LOANS | P47: Rate | Q47: Balance | S47: Interest | Z47: Balance
D48: Titled Vehicles | K48: ㉓ | Z48: =Q48-V48 -> 0
D49: Fruit Trees to Depreciate | K49: ㉔ | Z49: =Q49-V49 -> 0
D50: Other Intermediate Assets | K50: ㉕ | Z50: =Q50-V50 -> 0
D51: Total Intermediate Farm Assets | L51: =SUM(L39,L40,L41,L42,L43,L44,L46,L48,L49,L50) -> 0 | M51: =SUM(M45,M46,M48,M49,M50) -> 0 | Z51: =Q51-V51 -> 0
D52: LONG TERM FARM ASSETS | Z52: =Q52-V52 -> 0
D53: Item | E53: Acres | H53: Value Per Acre | L53: Cost | M53: Market | O53: Total Long Term Farm Liabilities | Z53: =SUM(Z48:Z52) -> 0
L54: Value | M54: Value
D55: Land | O55: TOTAL FARM LIABILITIES | Z55: =SUM(Z29,Z44,Z53) -> 0
D56: Residence | O56: NON-FARM LIABILITIES
D57: Farm Buildings | K57: ㉖ | O57: NET WORTH CALCULATION: | V57: Cost | Z57: Market
D58: Other Long Term Assets | K58: ㉕ | O58: Total Farm and Non-farm Liabilities | V58: =Z58 -> 0 | Z58: =SUM(Z55+Z56) -> 0
D59: Total Long Term Assets | L59: =SUM(L55:L58) -> 0 | M59: =SUM(M55,M56,M57,M58) -> 0 | O59: Deferred Tax Liabilities
D60: TOTAL FARM ASSETS | L60: =SUM(M35,L51,L59) -> 0 | M60: =SUM(M35,M51,M59) -> 0 | O60: TOTAL LIABILITIES | Z60: =SUM(Z58,Z59) -> 0
D61: NONFARM ASSETS | O61: Retained Earnings / Contributed Capital | V61: =L62-V58 -> 0
D62: TOTAL ASSETS | L62: =SUM(L60,L61) -> 0 | M62: =SUM(M60+M61) -> 0 | O62: NET WORTH | Z62: =M62-Z58-Z59 -> 0
Z65: =L60-Z55 -> 0
Z66: =M60-Z60 -> 0
O220: Seed
O221: Fertilizer
O222: Chemical
O223: Crop Custom Hire
O224: Purchased Feed
O225: Breeding & Registration
O226: Veterinary & Medicine
O227: bST
O228: Supplies
O229: DHIA
O230: Contract Heifer Raising
O231: Dairy Custom Hire
O232: Milk Hauling
O233: Milk Marketing
O234: Bedding
O235: Fuel and oil
O236: Repairs
O237: Land rent
O238: Hired labor, withholding, ins.
O239: Machinery leases
O240: Building leases
O241: Real estate taxes
O242: Farm insurance
O243: Utilities
O244: Risk mgt.& advertizing
O245: Dues and professional fees
O246: Miscellaneous
O247: Family Living/Owner Draw
O248: Income Taxes
O249: Capital Purchases

Sheet Depreciation
A2: Purchased Cows - Detail | M2: Farm Machinery and Equipment | W2: Titled Vehicles | AG2: Draft Horses and Mules | AQ2: Farm Buildings
A3: Base Value to Use | D3: 1400 | M3: Balance Sheet for Year Ending | P3: 2016 | W3: Balance Sheet for Year Ending | Z3: 2016 | AG3: Balance Sheet for Year Ending | AJ3: 2016 | AQ3: Balance Sheet for Year Ending | AT3: 2016
A4: Balance Sheet for Year Ending | D4: 2019 | M4: Cost Factor Per Year as Decimal | P4: 0.1 | W4: Cost Factor Per Year as Decimal | Z4: 0.15 | AG4: Cost Factor Per Year as Decimal | AJ4: 0.1 | AQ4: Cost Factor Per Year as Decimal | AT4: 0.05
A5: Description | B5: Quantity | C5: Year Purchased | D5: Original Cost | E5: Cost Value per Cow | F5: Market Value per Head | G5: Cost Difference from Base | H5: Age (Years) | I5: Cost Value Remaining per Head | J5: Cost Value Total | K5: Market Value Total | M5: Description | N5: Quantity | O5: Year Purchased | P5: Original Cost | Q5: Cost Factor | R5: Cost Value Remaining | S5: Market Value | T5: Age (Years) | U5: Replacement Cost | W5: Description | X5: Quantity | Y5: Year Purchased | Z5: Original Cost | AA5: Cost Factor | AB5: Cost Value Remaining | AC5: Market Value | AD5: Age (Years) | AE5: Replacement Cost | AG5: Description | AH5: Quantity | AI5: Year Purchased | AJ5: Original Cost | AK5: Cost Factor | AL5: Cost Value Remaining | AM5: Market Value | AN5: Age (Years) | AO5: Replacement Cost | AQ5: Description | AR5: Quantity | AS5: Year Purchased | AT5: Original Cost | AU5: Cost Factor | AV5: Cost Value Remaining | AW5: Market Value | AX5: Age (Years) | AY5: Replacement Cost
A6: Description | B6: Quantity | C6: Year Purc | D6: Original Cost | E6: Cost per Cow | F6: Market Value | G6: Difference | H6: Years | I6: Cost Value | J6: Cost Total | K6: Market Total | M6: Description | N6: Quantity | O6: Year Pur | P6: Orig Cost | Q6: Cost Factor | R6: Cost Value | S6: Mkt Value | T6: Age | U6: Replacement | W6: Description | X6: Quantity | Y6: Year Pur | Z6: Orig Cost | AA6: Cost Factor | AB6: Cost Value | AC6: Mkt Value | AD6: Age | AE6: Replacement | AG6: Description | AH6: Quantity | AI6: Year Pur | AJ6: Orig Cost | AK6: Cost Factor | AL6: Cost Value | AM6: Mkt Value | AN6: Age | AO6: Replacement | AQ6: Description | AR6: Quantity | AS6: Year Pur | AT6: Orig Cost | AU6: Cost Factor | AV6: Cost Value | AW6: Mkt Value | AX6: Age | AY6: Replacemnt
A7: Cows | B7: 5 | C7: 2015 | D7: 10000 | E7: =IF(B7>0,(D7/B7),0) -> 2000 | F7: 2000 | G7: =E7-$D$3 -> 600 | H7: =$D$4-C7 -> 4 | I7: =IF(H7=0,D7,IF(H7=1,(0.67*G7),IF(H7=2,(0.33*G7),IF(H7>2,(0*G7),0)))) -> 0 | J7: =IF(H7>0,(($D$3+I7)*B7),I7) -> 7000 | K7: =B7*F7 -> 10000 | M7: TMR Mixer | N7: 1 | O7: 2015 | P7: 35000 | Q7: =IF(Table2[[#This Row],[Age]]<=10,(10-Table2[[#This Row],[Age]])*$P$4,0) -> 0.9 | R7: =P7*Q7 -> 31500 | S7: 35000 | T7: =$P$3-$O7 -> 1 | U7: 35000 | W7: Truck | X7: 1 | Y7: 2014 | Z7: 30000 | AA7: =IF(Table3[[#This Row],[Age]]<=7,(7-Table3[[#This Row],[Age]])*$Z$4,0) -> 0.75 | AB7: =Z7*AA7 -> 22500 | AC7: 25000 | AD7: =$Z$3-Y7 -> 2 | AE7: 35000 | AG7: Mules | AH7: 3 | AI7: 2015 | AJ7: 6000 | AK7: =IF(Table4[[#This Row],[Age]]<=10,(10-Table4[[#This Row],[Age]])*$AJ$4,0) -> 0.9 | AL7: =AJ7*AK7 -> 5400 | AM7: 5500 | AN7: =$AJ$3-AI7 -> 1 | AO7: 6000 | AQ7: Calf Barn | AR7: 1 | AS7: 2013 | AT7: 25000 | AU7: =IF(Table5[[#This Row],[Age]]<=20,(20-Table5[[#This Row],[Age]])*$AT$4,0) -> 0.85 | AV7: =AT7*AU7 -> 21250 | AW7: 24000 | AX7: =$AT$3-AS7 -> 3 | AY7: 25000
E8: =IF(B8>0,(D8/B8),0) -> 0 | F8: 2500 | G8: =E8-$D$3 -> -1400 | H8: =$D$4-C8 -> 2019 | I8: =IF(H8=0,D8,IF(H8=1,(0.67*G8),IF(H8=2,(0.33*G8),IF(H8>2,(0*G8),0)))) -> 0 | J8: =IF(H8>0,(($D$3+I8)*B8),I8) -> 0 | K8: =B8*F8 -> 0 | Q8: =IF(Table2[[#This Row],[Age]]<=10,(10-Table2[[#This Row],[Age]])*$P$4,0) -> 0 | R8: =P8*Q8 -> 0 | T8: =$P$3-$O8 -> 2016 | W8: Dump Truck | X8: 1 | Y8: 2013 | Z8: 8000 | AA8: =IF(Table3[[#This Row],[Age]]<=7,(7-Table3[[#This Row],[Age]])*$Z$4,0) -> 0.6 | AB8: =Z8*AA8 -> 4800 | AC8: 6000 | AD8: =$Z$3-Y8 -> 3 | AE8: 10000 | AK8: =IF(Table4[[#This Row],[Age]]<=10,(10-Table4[[#This Row],[Age]])*$AJ$4,0) -> 0 | AL8: =AJ8*AK8 -> 0 | AN8: =$AJ$3-AI8 -> 2016 | AQ8: Freestall Barn | AU8: =IF(Table5[[#This Row],[Age]]<=20,(20-Table5[[#This Row],[Age]])*$AT$4,0) -> 0 | AV8: =AT8*AU8 -> 0 | AX8: =$AT$3-AS8 -> 2016
E9: 0 | G9: -1400 | H9: 2019 | I9: 0 | J9: 0 | K9: 0 | Q9: =IF(Table2[[#This Row],[Age]]<=10,(10-Table2[[#This Row],[Age]])*$P$4,0) -> 0 | R9: 0 | T9: 2016 | AA9: =IF(Table3[[#This Row],[Age]]<=7,(7-Table3[[#This Row],[Age]])*$Z$4,0) -> 0 | AB9: 0 | AD9: 2016 | AK9: =IF(Table4[[#This Row],[Age]]<=10,(10-Table4[[#This Row],[Age]])*$AJ$4,0) -> 0 | AL9: 0 | AN9: 2016 | AU9: =IF(Table5[[#This Row],[Age]]<=20,(20-Table5[[#This Row],[Age]])*$AT$4,0) -> 0 | AV9: 0 | AX9: =$AT$3-AS9 -> 2016
E10: 0 | G10: -1400 | H10: 2019 | I10: 0 | J10: 0 | K10: 0 | Q10: =IF(Table2[[#This Row],[Age]]<=10,(10-Table2[[#This Row],[Age]])*$P$4,0) -> 0 | R10: 0 | T10: 2016 | AA10: =IF(Table3[[#This Row],[Age]]<=7,(7-Table3[[#This Row],[Age]])*$Z$4,0) -> 0 | AB10: 0 | AD10: 2016 | AK10: =IF(Table4[[#This Row],[Age]]<=10,(10-Table4[[#This Row],[Age]])*$AJ$4,0) -> 0 | AL10: 0 | AN10: 2016 | AU10: =IF(Table5[[#This Row],[Age]]<=20,(20-Table5[[#This Row],[Age]])*$AT$4,0) -> 0 | AV10: 0 | AX10: 2016
E11: 0 | G11: -1400 | H11: 2019 | I11: 0 | J11: 0 | K11: 0 | Q11: =IF(Table2[[#This Row],[Age]]<=10,(10-Table2[[#This Row],[Age]])*$P$4,0) -> 0 | R11: 0 | T11: 2016 | AA11: =IF(Table3[[#This Row],[Age]]<=7,(7-Table3[[#This Row],[Age]])*$Z$4,0) -> 0 | AB11: 0 | AD11: 2016 | AK11: =IF(Table4[[#This Row],[Age]]<=10,(10-Table4[[#This Row],[Age]])*$AJ$4,0) -> 0 | AL11: 0 | AN11: 2016 | AU11: =IF(Table5[[#This Row],[Age]]<=20,(20-Table5[[#This Row],[Age]])*$AT$4,0) -> 0 | AV11: 0 | AX11: 2016
E12: 0 | G12: -1400 | H12: 2019 | I12: 0 | J12: 0 | K12: 0 | Q12: =IF(Table2[[#This Row],[Age]]<=10,(10-Table2[[#This Row],[Age]])*$P$4,0) -> 0 | R12: 0 | T12: 2016 | AA12: =IF(Table3[[#This Row],[Age]]<=7,(7-Table3[[#This Row],[Age]])*$Z$4,0) -> 0 | AB12: 0 | AD12: 2016 | AK12: =IF(Table4[[#This Row],[Age]]<=10,(10-Table4[[#This Row],[Age]])*$AJ$4,0) -> 0 | AL12: 0 | AN12: 2016 | AU12: =IF(Table5[[#This Row],[Age]]<=20,(20-Table5[[#This Row],[Age]])*$AT$4,0) -> 0 | AV12: 0 | AX12: 2016
E13: 0 | G13: -1400 | H13: 2019 | I13: 0 | J13: 0 | K13: 0 | Q13: =IF(Table2[[#This Row],[Age]]<=10,(10-Table2[[#This Row],[Age]])*$P$4,0) -> 0 | R13: 0 | T13: 2016 | AA13: =IF(Table3[[#This Row],[Age]]<=7,(7-Table3[[#This Row],[Age]])*$Z$4,0) -> 0 | AB13: 0 | AD13: 2016 | AK13: =IF(Table4[[#This Row],[Age]]<=10,(10-Table4[[#This Row],[Age]])*$AJ$4,0) -> 0 | AL13: 0 | AN13: 2016 | AU13: =IF(Table5[[#This Row],[Age]]<=20,(20-Table5[[#This Row],[Age]])*$AT$4,0) -> 0 | AV13: 0 | AX13: 2016
E14: 0 | G14: -1400 | H14: 2019 | I14: 0 | J14: 0 | K14: 0 | Q14: =IF(Table2[[#This Row],[Age]]<=10,(10-Table2[[#This Row],[Age]])*$P$4,0) -> 0 | R14: 0 | T14: 2016 | AA14: =IF(Table3[[#This Row],[Age]]<=7,(7-Table3[[#This Row],[Age]])*$Z$4,0) -> 0 | AB14: 0 | AD14: 2016 | AK14: =IF(Table4[[#This Row],[Age]]<=10,(10-Table4[[#This Row],[Age]])*$AJ$4,0) -> 0 | AL14: 0 | AN14: 2016 | AU14: =IF(Table5[[#This Row],[Age]]<=20,(20-Table5[[#This Row],[Age]])*$AT$4,0) -> 0 | AV14: 0 | AX14: 2016
E15: 0 | G15: -1400 | H15: 2019 | I15: 0 | J15: 0 | K15: 0 | Q15: =IF(Table2[[#This Row],[Age]]<=10,(10-Table2[[#This Row],[Age]])*$P$4,0) -> 0 | R15: 0 | T15: 2016 | AA15: =IF(Table3[[#This Row],[Age]]<=7,(7-Table3[[#This Row],[Age]])*$Z$4,0) -> 0 | AB15: 0 | AD15: 2016 | AK15: =IF(Table4[[#This Row],[Age]]<=10,(10-Table4[[#This Row],[Age]])*$AJ$4,0) -> 0 | AL15: 0 | AN15: 2016 | AU15: =IF(Table5[[#This Row],[Age]]<=20,(20-Table5[[#This Row],[Age]])*$AT$4,0) -> 0 | AV15: 0 | AX15: 2016
E16: 0 | G16: -1400 | H16: 2019 | I16: 0 | J16: 0 | K16: 0 | Q16: =IF(Table2[[#This Row],[Age]]<=10,(10-Table2[[#This Row],[Age]])*$P$4,0) -> 0 | R16: 0 | T16: 2016 | AA16: =IF(Table3[[#This Row],[Age]]<=7,(7-Table3[[#This Row],[Age]])*$Z$4,0) -> 0 | AB16: 0 | AD16: 2016 | AK16: =IF(Table4[[#This Row],[Age]]<=10,(10-Table4[[#This Row],[Age]])*$AJ$4,0) -> 0 | AL16: 0 | AN16: 2016 | AU16: =IF(Table5[[#This Row],[Age]]<=20,(20-Table5[[#This Row],[Age]])*$AT$4,0) -> 0 | AV16: 0 | AX16: 2016
E17: 0 | G17: -1400 | H17: 2019 | I17: 0 | J17: 0 | K17: 0 | Q17: =IF(Table2[[#This Row],[Age]]<=10,(10-Table2[[#This Row],[Age]])*$P$4,0) -> 0 | R17: 0 | T17: 2016 | AA17: =IF(Table3[[#This Row],[Age]]<=7,(7-Table3[[#This Row],[Age]])*$Z$4,0) -> 0 | AB17: 0 | AD17: 2016 | AK17: =IF(Table4[[#This Row],[Age]]<=10,(10-Table4[[#This Row],[Age]])*$AJ$4,0) -> 0 | AL17: 0 | AN17: 2016 | AU17: =IF(Table5[[#This Row],[Age]]<=20,(20-Table5[[#This Row],[Age]])*$AT$4,0) -> 0 | AV17: 0 | AX17: 2016
E18: 0 | G18: -1400 | H18: 2019 | I18: 0 | J18: 0 | K18: 0 | Q18: =IF(Table2[[#This Row],[Age]]<=10,(10-Table2[[#This Row],[Age]])*$P$4,0) -> 0 | R18: 0 | T18: 2016 | AA18: =IF(Table3[[#This Row],[Age]]<=7,(7-Table3[[#This Row],[Age]])*$Z$4,0) -> 0 | AB18: 0 | AD18: 2016 | AK18: =IF(Table4[[#This Row],[Age]]<=10,(10-Table4[[#This Row],[Age]])*$AJ$4,0) -> 0 | AL18: 0 | AN18: 2016 | AU18: =IF(Table5[[#This Row],[Age]]<=20,(20-Table5[[#This Row],[Age]])*$AT$4,0) -> 0 | AV18: 0 | AX18: 2016
E19: 0 | G19: -1400 | H19: 2019 | I19: 0 | J19: 0 | K19: 0 | Q19: =IF(Table2[[#This Row],[Age]]<=10,(10-Table2[[#This Row],[Age]])*$P$4,0) -> 0 | R19: 0 | T19: 2016 | AA19: =IF(Table3[[#This Row],[Age]]<=7,(7-Table3[[#This Row],[Age]])*$Z$4,0) -> 0 | AB19: 0 | AD19: 2016 | AK19: =IF(Table4[[#This Row],[Age]]<=10,(10-Table4[[#This Row],[Age]])*$AJ$4,0) -> 0 | AL19: 0 | AN19: 2016 | AU19: =IF(Table5[[#This Row],[Age]]<=20,(20-Table5[[#This Row],[Age]])*$AT$4,0) -> 0 | AV19: 0 | AX19: 2016
E20: 0 | G20: -1400 | H20: 2019 | I20: 0 | J20: 0 | K20: 0 | Q20: =IF(Table2[[#This Row],[Age]]<=10,(10-Table2[[#This Row],[Age]])*$P$4,0) -> 0 | R20: 0 | T20: 2016 | AA20: =IF(Table3[[#This Row],[Age]]<=7,(7-Table3[[#This Row],[Age]])*$Z$4,0) -> 0 | AB20: 0 | AD20: 2016 | AK20: =IF(Table4[[#This Row],[Age]]<=10,(10-Table4[[#This Row],[Age]])*$AJ$4,0) -> 0 | AL20: 0 | AN20: 2016 | AU20: =IF(Table5[[#This Row],[Age]]<=20,(20-Table5[[#This Row],[Age]])*$AT$4,0) -> 0 | AV20: 0 | AX20: 2016
E21: 0 | G21: -1400 | H21: 2019 | I21: 0 | J21: 0 | K21: 0 | Q21: =IF(Table2[[#This Row],[Age]]<=10,(10-Table2[[#This Row],[Age]])*$P$4,0) -> 0 | R21: 0 | T21: 2016 | AA21: =IF(Table3[[#This Row],[Age]]<=7,(7-Table3[[#This Row],[Age]])*$Z$4,0) -> 0 | AB21: 0 | AD21: 2016 | AK21: =IF(Table4[[#This Row],[Age]]<=10,(10-Table4[[#This Row],[Age]])*$AJ$4,0) -> 0 | AL21: 0 | AN21: 2016 | AU21: =IF(Table5[[#This Row],[Age]]<=20,(20-Table5[[#This Row],[Age]])*$AT$4,0) -> 0 | AV21: 0 | AX21: 2016
E22: 0 | G22: -1400 | H22: 2019 | I22: 0 | J22: 0 | K22: 0 | Q22: =IF(Table2[[#This Row],[Age]]<=10,(10-Table2[[#This Row],[Age]])*$P$4,0) -> 0 | R22: 0 | T22: 2016 | AA22: =IF(Table3[[#This Row],[Age]]<=7,(7-Table3[[#This Row],[Age]])*$Z$4,0) -> 0 | AB22: 0 | AD22: 2016 | AK22: =IF(Table4[[#This Row],[Age]]<=10,(10-Table4[[#This Row],[Age]])*$AJ$4,0) -> 0 | AL22: 0 | AN22: 2016 | AU22: =IF(Table5[[#This Row],[Age]]<=20,(20-Table5[[#This Row],[Age]])*$AT$4,0) -> 0 | AV22: 0 | AX22: 2016
E23: 0 | G23: -1400 | H23: 2019 | I23: 0 | J23: 0 | K23: 0 | Q23: =IF(Table2[[#This Row],[Age]]<=10,(10-Table2[[#This Row],[Age]])*$P$4,0) -> 0 | R23: 0 | T23: 2016 | AA23: =IF(Table3[[#This Row],[Age]]<=7,(7-Table3[[#This Row],[Age]])*$Z$4,0) -> 0 | AB23: 0 | AD23: 2016 | AK23: =IF(Table4[[#This Row],[Age]]<=10,(10-Table4[[#This Row],[Age]])*$AJ$4,0) -> 0 | AL23: 0 | AN23: 2016 | AU23: =IF(Table5[[#This Row],[Age]]<=20,(20-Table5[[#This Row],[Age]])*$AT$4,0) -> 0 | AV23: 0 | AX23: 2016
E24: 0 | G24: -1400 | H24: 2019 | I24: 0 | J24: 0 | K24: 0 | Q24: =IF(Table2[[#This Row],[Age]]<=10,(10-Table2[[#This Row],[Age]])*$P$4,0) -> 0 | R24: 0 | T24: 2016 | AA24: =IF(Table3[[#This Row],[Age]]<=7,(7-Table3[[#This Row],[Age]])*$Z$4,0) -> 0 | AB24: 0 | AD24: 2016 | AK24: =IF(Table4[[#This Row],[Age]]<=10,(10-Table4[[#This Row],[Age]])*$AJ$4,0) -> 0 | AL24: 0 | AN24: 2016 | AU24: =IF(Table5[[#This Row],[Age]]<=20,(20-Table5[[#This Row],[Age]])*$AT$4,0) -> 0 | AV24: 0 | AX24: 2016
E25: 0 | G25: -1400 | H25: 2019 | I25: 0 | J25: 0 | K25: 0 | Q25: =IF(Table2[[#This Row],[Age]]<=10,(10-Table2[[#This Row],[Age]])*$P$4,0) -> 0 | R25: 0 | T25: 2016 | AA25: =IF(Table3[[#This Row],[Age]]<=7,(7-Table3[[#This Row],[Age]])*$Z$4,0) -> 0 | AB25: 0 | AD25: 2016 | AK25: =IF(Table4[[#This Row],[Age]]<=10,(10-Table4[[#This Row],[Age]])*$AJ$4,0) -> 0 | AL25: 0 | AN25: 2016 | AU25: =IF(Table5[[#This Row],[Age]]<=20,(20-Table5[[#This Row],[Age]])*$AT$4,0) -> 0 | AV25: 0 | AX25: 2016
E26: 0 | G26: -1400 | H26: 2019 | I26: 0 | J26: 0 | K26: 0 | Q26: =IF(Table2[[#This Row],[Age]]<=10,(10-Table2[[#This Row],[Age]])*$P$4,0) -> 0 | R26: 0 | T26: 2016 | AA26: =IF(Table3[[#This Row],[Age]]<=7,(7-Table3[[#This Row],[Age]])*$Z$4,0) -> 0 | AB26: 0 | AD26: 2016 | AK26: =IF(Table4[[#This Row],[Age]]<=10,(10-Table4[[#This Row],[Age]])*$AJ$4,0) -> 0 | AL26: 0 | AN26: 2016 | AU26: =IF(Table5[[#This Row],[Age]]<=20,(20-Table5[[#This Row],[Age]])*$AT$4,0) -> 0 | AV26: 0 | AX26: 2016
E27: 0 | G27: -1400 | H27: 2019 | I27: 0 | J27: 0 | K27: 0 | Q27: =IF(Table2[[#This Row],[Age]]<=10,(10-Table2[[#This Row],[Age]])*$P$4,0) -> 0 | R27: 0 | T27: 2016 | AA27: =IF(Table3[[#This Row],[Age]]<=7,(7-Table3[[#This Row],[Age]])*$Z$4,0) -> 0 | AB27: 0 | AD27: 2016 | AK27: =IF(Table4[[#This Row],[Age]]<=10,(10-Table4[[#This Row],[Age]])*$AJ$4,0) -> 0 | AL27: 0 | AN27: 2016 | AU27: =IF(Table5[[#This Row],[Age]]<=20,(20-Table5[[#This Row],[Age]])*$AT$4,0) -> 0 | AV27: 0 | AX27: 2016
E28: 0 | G28: -1400 | H28: 2019 | I28: 0 | J28: 0 | K28: 0 | Q28: =IF(Table2[[#This Row],[Age]]<=10,(10-Table2[[#This Row],[Age]])*$P$4,0) -> 0 | R28: 0 | T28: 2016 | AA28: =IF(Table3[[#This Row],[Age]]<=7,(7-Table3[[#This Row],[Age]])*$Z$4,0) -> 0 | AB28: 0 | AD28: 2016 | AK28: =IF(Table4[[#This Row],[Age]]<=10,(10-Table4[[#This Row],[Age]])*$AJ$4,0) -> 0 | AL28: 0 | AN28: 2016 | AU28: =IF(Table5[[#This Row],[Age]]<=20,(20-Table5[[#This Row],[Age]])*$AT$4,0) -> 0 | AV28: 0 | AX28: 2016
E29: 0 | G29: -1400 | H29: 2019 | I29: 0 | J29: 0 | K29: 0 | Q29: =IF(Table2[[#This Row],[Age]]<=10,(10-Table2[[#This Row],[Age]])*$P$4,0) -> 0 | R29: 0 | T29: 2016 | AA29: =IF(Table3[[#This Row],[Age]]<=7,(7-Table3[[#This Row],[Age]])*$Z$4,0) -> 0 | AB29: 0 | AD29: 2016 | AK29: =IF(Table4[[#This Row],[Age]]<=10,(10-Table4[[#This Row],[Age]])*$AJ$4,0) -> 0 | AL29: 0 | AN29: 2016 | AU29: =IF(Table5[[#This Row],[Age]]<=20,(20-Table5[[#This Row],[Age]])*$AT$4,0) -> 0 | AV29: 0 | AX29: 2016
E30: 0 | G30: -1400 | H30: 2019 | I30: 0 | J30: 0 | K30: 0 | Q30: =IF(Table2[[#This Row],[Age]]<=10,(10-Table2[[#This Row],[Age]])*$P$4,0) -> 0 | R30: 0 | T30: 2016 | AA30: =IF(Table3[[#This Row],[Age]]<=7,(7-Table3[[#This Row],[Age]])*$Z$4,0) -> 0 | AB30: 0 | AD30: 2016 | AK30: =IF(Table4[[#This Row],[Age]]<=10,(10-Table4[[#This Row],[Age]])*$AJ$4,0) -> 0 | AL30: 0 | AN30: 2016 | AU30: =IF(Table5[[#This Row],[Age]]<=20,(20-Table5[[#This Row],[Age]])*$AT$4,0) -> 0 | AV30: 0 | AX30: 2016
E31: 0 | G31: -1400 | H31: 2019 | I31: 0 | J31: 0 | K31: 0 | Q31: =IF(Table2[[#This Row],[Age]]<=10,(10-Table2[[#This Row],[Age]])*$P$4,0) -> 0 | R31: 0 | T31: 2016 | AA31: =IF(Table3[[#This Row],[Age]]<=7,(7-Table3[[#This Row],[Age]])*$Z$4,0) -> 0 | AB31: 0 | AD31: 2016 | AK31: =IF(Table4[[#This Row],[Age]]<=10,(10-Table4[[#This Row],[Age]])*$AJ$4,0) -> 0 | AL31: 0 | AN31: 2016 | AU31: =IF(Table5[[#This Row],[Age]]<=20,(20-Table5[[#This Row],[Age]])*$AT$4,0) -> 0 | AV31: 0 | AX31: 2016
E32: 0 | G32: -1400 | H32: 2019 | I32: 0 | J32: 0 | K32: 0 | Q32: =IF(Table2[[#This Row],[Age]]<=10,(10-Table2[[#This Row],[Age]])*$P$4,0) -> 0 | R32: 0 | T32: 2016 | AA32: =IF(Table3[[#This Row],[Age]]<=7,(7-Table3[[#This Row],[Age]])*$Z$4,0) -> 0 | AB32: 0 | AD32: 2016 | AK32: =IF(Table4[[#This Row],[Age]]<=10,(10-Table4[[#This Row],[Age]])*$AJ$4,0) -> 0 | AL32: 0 | AN32: 2016 | AU32: =IF(Table5[[#This Row],[Age]]<=20,(20-Table5[[#This Row],[Age]])*$AT$4,0) -> 0 | AV32: 0 | AX32: 2016
E33: 0 | G33: -1400 | H33: 2019 | I33: 0 | J33: 0 | K33: 0 | Q33: =IF(Table2[[#This Row],[Age]]<=10,(10-Table2[[#This Row],[Age]])*$P$4,0) -> 0 | R33: 0 | T33: 2016 | AA33: =IF(Table3[[#This Row],[Age]]<=7,(7-Table3[[#This Row],[Age]])*$Z$4,0) -> 0 | AB33: 0 | AD33: 2016 | AK33: =IF(Table4[[#This Row],[Age]]<=10,(10-Table4[[#This Row],[Age]])*$AJ$4,0) -> 0 | AL33: 0 | AN33: 2016 | AU33: =IF(Table5[[#This Row],[Age]]<=20,(20-Table5[[#This Row],[Age]])*$AT$4,0) -> 0 | AV33: 0 | AX33: 2016
E34: 0 | G34: -1400 | H34: 2019 | I34: 0 | J34: 0 | K34: 0 | Q34: =IF(Table2[[#This Row],[Age]]<=10,(10-Table2[[#This Row],[Age]])*$P$4,0) -> 0 | R34: 0 | T34: 2016 | AA34: =IF(Table3[[#This Row],[Age]]<=7,(7-Table3[[#This Row],[Age]])*$Z$4,0) -> 0 | AB34: 0 | AD34: 2016 | AK34: =IF(Table4[[#This Row],[Age]]<=10,(10-Table4[[#This Row],[Age]])*$AJ$4,0) -> 0 | AL34: 0 | AN34: 2016 | AU34: =IF(Table5[[#This Row],[Age]]<=20,(20-Table5[[#This Row],[Age]])*$AT$4,0) -> 0 | AV34: 0 | AX34: 2016
E35: 0 | G35: -1400 | H35: 2019 | I35: 0 | J35: 0 | K35: 0 | Q35: =IF(Table2[[#This Row],[Age]]<=10,(10-Table2[[#This Row],[Age]])*$P$4,0) -> 0 | R35: 0 | T35: 2016 | AA35: =IF(Table3[[#This Row],[Age]]<=7,(7-Table3[[#This Row],[Age]])*$Z$4,0) -> 0 | AB35: 0 | AD35: 2016 | AK35: =IF(Table4[[#This Row],[Age]]<=10,(10-Table4[[#This Row],[Age]])*$AJ$4,0) -> 0 | AL35: 0 | AN35: 2016 | AU35: =IF(Table5[[#This Row],[Age]]<=20,(20-Table5[[#This Row],[Age]])*$AT$4,0) -> 0 | AV35: 0 | AX35: 2016
E36: 0 | G36: -1400 | H36: 2019 | I36: 0 | J36: 0 | K36: 0 | Q36: =IF(Table2[[#This Row],[Age]]<=10,(10-Table2[[#This Row],[Age]])*$P$4,0) -> 0 | R36: =P36*Q36 -> 0 | T36: 2016 | AA36: =IF(Table3[[#This Row],[Age]]<=7,(7-Table3[[#This Row],[Age]])*$Z$4,0) -> 0 | AB36: 0 | AD36: 2016 | AK36: =IF(Table4[[#This Row],[Age]]<=10,(10-Table4[[#This Row],[Age]])*$AJ$4,0) -> 0 | AL36: 0 | AN36: 2016 | AU36: =IF(Table5[[#This Row],[Age]]<=20,(20-Table5[[#This Row],[Age]])*$AT$4,0) -> 0 | AV36: 0 | AX36: 2016
E37: 0 | G37: -1400 | H37: 2019 | I37: 0 | J37: 0 | K37: 0 | Q37: =IF(Table2[[#This Row],[Age]]<=10,(10-Table2[[#This Row],[Age]])*$P$4,0) -> 0 | R37: =P37*Q37 -> 0 | T37: 2016 | AA37: =IF(Table3[[#This Row],[Age]]<=7,(7-Table3[[#This Row],[Age]])*$Z$4,0) -> 0 | AB37: 0 | AD37: 2016 | AK37: =IF(Table4[[#This Row],[Age]]<=10,(10-Table4[[#This Row],[Age]])*$AJ$4,0) -> 0 | AL37: 0 | AN37: 2016 | AU37: =IF(Table5[[#This Row],[Age]]<=20,(20-Table5[[#This Row],[Age]])*$AT$4,0) -> 0 | AV37: 0 | AX37: 2016
E38: 0 | G38: -1400 | H38: 2019 | I38: 0 | J38: 0 | K38: 0 | Q38: =IF(Table2[[#This Row],[Age]]<=10,(10-Table2[[#This Row],[Age]])*$P$4,0) -> 0 | R38: =P38*Q38 -> 0 | T38: 2016 | AA38: =IF(Table3[[#This Row],[Age]]<=7,(7-Table3[[#This Row],[Age]])*$Z$4,0) -> 0 | AB38: 0 | AD38: 2016 | AK38: =IF(Table4[[#This Row],[Age]]<=10,(10-Table4[[#This Row],[Age]])*$AJ$4,0) -> 0 | AL38: 0 | AN38: 2016 | AU38: =IF(Table5[[#This Row],[Age]]<=20,(20-Table5[[#This Row],[Age]])*$AT$4,0) -> 0 | AV38: 0 | AX38: 2016
E39: 0 | G39: -1400 | H39: 2019 | I39: 0 | J39: 0 | K39: 0 | Q39: =IF(Table2[[#This Row],[Age]]<=10,(10-Table2[[#This Row],[Age]])*$P$4,0) -> 0 | R39: 0 | T39: 2016 | AA39: =IF(Table3[[#This Row],[Age]]<=7,(7-Table3[[#This Row],[Age]])*$Z$4,0) -> 0 | AB39: 0 | AD39: 2016 | AK39: =IF(Table4[[#This Row],[Age]]<=10,(10-Table4[[#This Row],[Age]])*$AJ$4,0) -> 0 | AL39: 0 | AN39: 2016 | AU39: =IF(Table5[[#This Row],[Age]]<=20,(20-Table5[[#This Row],[Age]])*$AT$4,0) -> 0 | AV39: 0 | AX39: 2016
E40: 0 | G40: -1400 | H40: 2019 | I40: 0 | J40: 0 | K40: 0 | Q40: =IF(Table2[[#This Row],[Age]]<=10,(10-Table2[[#This Row],[Age]])*$P$4,0) -> 0 | R40: 0 | T40: 2016 | AA40: =IF(Table3[[#This Row],[Age]]<=7,(7-Table3[[#This Row],[Age]])*$Z$4,0) -> 0 | AB40: 0 | AD40: 2016 | AK40: =IF(Table4[[#This Row],[Age]]<=10,(10-Table4[[#This Row],[Age]])*$AJ$4,0) -> 0 | AL40: 0 | AN40: 2016 | AU40: =IF(Table5[[#This Row],[Age]]<=20,(20-Table5[[#This Row],[Age]])*$AT$4,0) -> 0 | AV40: 0 | AX40: 2016
E41: 0 | G41: -1400 | H41: 2019 | I41: 0 | J41: 0 | K41: 0 | Q41: =IF(Table2[[#This Row],[Age]]<=10,(10-Table2[[#This Row],[Age]])*$P$4,0) -> 0 | R41: 0 | T41: 2016 | AA41: =IF(Table3[[#This Row],[Age]]<=7,(7-Table3[[#This Row],[Age]])*$Z$4,0) -> 0 | AB41: 0 | AD41: 2016 | AK41: =IF(Table4[[#This Row],[Age]]<=10,(10-Table4[[#This Row],[Age]])*$AJ$4,0) -> 0 | AL41: 0 | AN41: 2016 | AU41: =IF(Table5[[#This Row],[Age]]<=20,(20-Table5[[#This Row],[Age]])*$AT$4,0) -> 0 | AV41: 0 | AX41: 2016
E42: 0 | G42: -1400 | H42: 2019 | I42: 0 | J42: 0 | K42: 0 | Q42: =IF(Table2[[#This Row],[Age]]<=10,(10-Table2[[#This Row],[Age]])*$P$4,0) -> 0 | R42: 0 | T42: 2016 | AA42: =IF(Table3[[#This Row],[Age]]<=7,(7-Table3[[#This Row],[Age]])*$Z$4,0) -> 0 | AB42: 0 | AD42: 2016 | AK42: =IF(Table4[[#This Row],[Age]]<=10,(10-Table4[[#This Row],[Age]])*$AJ$4,0) -> 0 | AL42: 0 | AN42: 2016 | AU42: =IF(Table5[[#This Row],[Age]]<=20,(20-Table5[[#This Row],[Age]])*$AT$4,0) -> 0 | AV42: 0 | AX42: 2016
E43: 0 | G43: -1400 | H43: 2019 | I43: 0 | J43: 0 | K43: 0 | Q43: =IF(Table2[[#This Row],[Age]]<=10,(10-Table2[[#This Row],[Age]])*$P$4,0) -> 0 | R43: 0 | T43: 2016 | AA43: =IF(Table3[[#This Row],[Age]]<=7,(7-Table3[[#This Row],[Age]])*$Z$4,0) -> 0 | AB43: 0 | AD43: 2016 | AK43: =IF(Table4[[#This Row],[Age]]<=10,(10-Table4[[#This Row],[Age]])*$AJ$4,0) -> 0 | AL43: 0 | AN43: 2016 | AU43: =IF(Table5[[#This Row],[Age]]<=20,(20-Table5[[#This Row],[Age]])*$AT$4,0) -> 0 | AV43: 0 | AX43: 2016
E44: 0 | G44: -1400 | H44: 2019 | I44: 0 | J44: 0 | K44: 0 | Q44: =IF(Table2[[#This Row],[Age]]<=10,(10-Table2[[#This Row],[Age]])*$P$4,0) -> 0 | R44: 0 | T44: 2016 | AA44: =IF(Table3[[#This Row],[Age]]<=7,(7-Table3[[#This Row],[Age]])*$Z$4,0) -> 0 | AB44: 0 | AD44: 2016 | AK44: =IF(Table4[[#This Row],[Age]]<=10,(10-Table4[[#This Row],[Age]])*$AJ$4,0) -> 0 | AL44: 0 | AN44: 2016 | AU44: =IF(Table5[[#This Row],[Age]]<=20,(20-Table5[[#This Row],[Age]])*$AT$4,0) -> 0 | AV44: 0 | AX44: 2016
E45: 0 | G45: -1400 | H45: 2019 | I45: 0 | J45: 0 | K45: 0 | Q45: =IF(Table2[[#This Row],[Age]]<=10,(10-Table2[[#This Row],[Age]])*$P$4,0) -> 0 | R45: 0 | T45: 2016 | AA45: =IF(Table3[[#This Row],[Age]]<=7,(7-Table3[[#This Row],[Age]])*$Z$4,0) -> 0 | AB45: 0 | AD45: 2016 | AK45: =IF(Table4[[#This Row],[Age]]<=10,(10-Table4[[#This Row],[Age]])*$AJ$4,0) -> 0 | AL45: 0 | AN45: 2016 | AU45: =IF(Table5[[#This Row],[Age]]<=20,(20-Table5[[#This Row],[Age]])*$AT$4,0) -> 0 | AV45: 0 | AX45: 2016
E46: 0 | G46: -1400 | H46: 2019 | I46: 0 | J46: 0 | K46: 0 | Q46: =IF(Table2[[#This Row],[Age]]<=10,(10-Table2[[#This Row],[Age]])*$P$4,0) -> 0 | R46: 0 | T46: 2016 | AA46: =IF(Table3[[#This Row],[Age]]<=7,(7-Table3[[#This Row],[Age]])*$Z$4,0) -> 0 | AB46: 0 | AD46: 2016 | AK46: =IF(Table4[[#This Row],[Age]]<=10,(10-Table4[[#This Row],[Age]])*$AJ$4,0) -> 0 | AL46: 0 | AN46: 2016 | AU46: =IF(Table5[[#This Row],[Age]]<=20,(20-Table5[[#This Row],[Age]])*$AT$4,0) -> 0 | AV46: 0 | AX46: 2016
E47: 0 | G47: -1400 | H47: 2019 | I47: 0 | J47: 0 | K47: 0 | Q47: =IF(Table2[[#This Row],[Age]]<=10,(10-Table2[[#This Row],[Age]])*$P$4,0) -> 0 | R47: 0 | T47: 2016 | AA47: =IF(Table3[[#This Row],[Age]]<=7,(7-Table3[[#This Row],[Age]])*$Z$4,0) -> 0 | AB47: 0 | AD47: 2016 | AK47: =IF(Table4[[#This Row],[Age]]<=10,(10-Table4[[#This Row],[Age]])*$AJ$4,0) -> 0 | AL47: 0 | AN47: 2016 | AU47: =IF(Table5[[#This Row],[Age]]<=20,(20-Table5[[#This Row],[Age]])*$AT$4,0) -> 0 | AV47: 0 | AX47: 2016
E48: 0 | G48: -1400 | H48: 2019 | I48: 0 | J48: 0 | K48: 0 | Q48: =IF(Table2[[#This Row],[Age]]<=10,(10-Table2[[#This Row],[Age]])*$P$4,0) -> 0 | R48: 0 | T48: 2016 | AA48: =IF(Table3[[#This Row],[Age]]<=7,(7-Table3[[#This Row],[Age]])*$Z$4,0) -> 0 | AB48: 0 | AD48: 2016 | AK48: =IF(Table4[[#This Row],[Age]]<=10,(10-Table4[[#This Row],[Age]])*$AJ$4,0) -> 0 | AL48: 0 | AN48: 2016 | AU48: =IF(Table5[[#This Row],[Age]]<=20,(20-Table5[[#This Row],[Age]])*$AT$4,0) -> 0 | AV48: 0 | AX48: 2016
E49: 0 | G49: -1400 | H49: 2019 | I49: 0 | J49: 0 | K49: 0 | Q49: =IF(Table2[[#This Row],[Age]]<=10,(10-Table2[[#This Row],[Age]])*$P$4,0) -> 0 | R49: 0 | T49: 2016 | AA49: =IF(Table3[[#This Row],[Age]]<=7,(7-Table3[[#This Row],[Age]])*$Z$4,0) -> 0 | AB49: 0 | AD49: 2016 | AK49: =IF(Table4[[#This Row],[Age]]<=10,(10-Table4[[#This Row],[Age]])*$AJ$4,0) -> 0 | AL49: 0 | AN49: 2016 | AU49: =IF(Table5[[#This Row],[Age]]<=20,(20-Table5[[#This Row],[Age]])*$AT$4,0) -> 0 | AV49: 0 | AX49: 2016
E50: 0 | G50: -1400 | H50: 2019 | I50: 0 | J50: 0 | K50: 0 | Q50: =IF(Table2[[#This Row],[Age]]<=10,(10-Table2[[#This Row],[Age]])*$P$4,0) -> 0 | R50: 0 | T50: 2016 | AA50: =IF(Table3[[#This Row],[Age]]<=7,(7-Table3[[#This Row],[Age]])*$Z$4,0) -> 0 | AB50: 0 | AD50: 2016 | AK50: =IF(Table4[[#This Row],[Age]]<=10,(10-Table4[[#This Row],[Age]])*$AJ$4,0) -> 0 | AL50: 0 | AN50: 2016 | AU50: =IF(Table5[[#This Row],[Age]]<=20,(20-Table5[[#This Row],[Age]])*$AT$4,0) -> 0 | AV50: 0 | AX50: 2016
E51: 0 | G51: -1400 | H51: 2019 | I51: 0 | J51: 0 | K51: 0 | Q51: =IF(Table2[[#This Row],[Age]]<=10,(10-Table2[[#This Row],[Age]])*$P$4,0) -> 0 | R51: 0 | T51: 2016 | AA51: =IF(Table3[[#This Row],[Age]]<=7,(7-Table3[[#This Row],[Age]])*$Z$4,0) -> 0 | AB51: 0 | AD51: 2016 | AK51: =IF(Table4[[#This Row],[Age]]<=10,(10-Table4[[#This Row],[Age]])*$AJ$4,0) -> 0 | AL51: 0 | AN51: 2016 | AU51: =IF(Table5[[#This Row],[Age]]<=20,(20-Table5[[#This Row],[Age]])*$AT$4,0) -> 0 | AV51: 0 | AX51: 2016
E52: 0 | G52: -1400 | H52: 2019 | I52: 0 | J52: 0 | K52: 0 | Q52: =IF(Table2[[#This Row],[Age]]<=10,(10-Table2[[#This Row],[Age]])*$P$4,0) -> 0 | R52: 0 | T52: 2016 | AA52: =IF(Table3[[#This Row],[Age]]<=7,(7-Table3[[#This Row],[Age]])*$Z$4,0) -> 0 | AB52: 0 | AD52: 2016 | AK52: =IF(Table4[[#This Row],[Age]]<=10,(10-Table4[[#This Row],[Age]])*$AJ$4,0) -> 0 | AL52: 0 | AN52: 2016 | AU52: =IF(Table5[[#This Row],[Age]]<=20,(20-Table5[[#This Row],[Age]])*$AT$4,0) -> 0 | AV52: 0 | AX52: 2016
E53: 0 | G53: -1400 | H53: 2019 | I53: 0 | J53: 0 | K53: 0 | Q53: =IF(Table2[[#This Row],[Age]]<=10,(10-Table2[[#This Row],[Age]])*$P$4,0) -> 0 | R53: 0 | T53: 2016 | AA53: =IF(Table3[[#This Row],[Age]]<=7,(7-Table3[[#This Row],[Age]])*$Z$4,0) -> 0 | AB53: 0 | AD53: 2016 | AK53: =IF(Table4[[#This Row],[Age]]<=10,(10-Table4[[#This Row],[Age]])*$AJ$4,0) -> 0 | AL53: 0 | AN53: 2016 | AU53: =IF(Table5[[#This Row],[Age]]<=20,(20-Table5[[#This Row],[Age]])*$AT$4,0) -> 0 | AV53: 0 | AX53: 2016
E54: 0 | G54: -1400 | H54: 2019 | I54: 0 | J54: 0 | K54: 0 | Q54: =IF(Table2[[#This Row],[Age]]<=10,(10-Table2[[#This Row],[Age]])*$P$4,0) -> 0 | R54: 0 | T54: 2016 | AA54: =IF(Table3[[#This Row],[Age]]<=7,(7-Table3[[#This Row],[Age]])*$Z$4,0) -> 0 | AB54: 0 | AD54: 2016 | AK54: =IF(Table4[[#This Row],[Age]]<=10,(10-Table4[[#This Row],[Age]])*$AJ$4,0) -> 0 | AL54: 0 | AN54: 2016 | AU54: =IF(Table5[[#This Row],[Age]]<=20,(20-Table5[[#This Row],[Age]])*$AT$4,0) -> 0 | AV54: 0 | AX54: 2016
E55: 0 | G55: -1400 | H55: 2019 | I55: 0 | J55: 0 | K55: 0 | Q55: =IF(Table2[[#This Row],[Age]]<=10,(10-Table2[[#This Row],[Age]])*$P$4,0) -> 0 | R55: 0 | T55: 2016 | AA55: =IF(Table3[[#This Row],[Age]]<=7,(7-Table3[[#This Row],[Age]])*$Z$4,0) -> 0 | AB55: 0 | AD55: 2016 | AK55: =IF(Table4[[#This Row],[Age]]<=10,(10-Table4[[#This Row],[Age]])*$AJ$4,0) -> 0 | AL55: 0 | AN55: 2016 | AU55: =IF(Table5[[#This Row],[Age]]<=20,(20-Table5[[#This Row],[Age]])*$AT$4,0) -> 0 | AV55: 0 | AX55: 2016
A56: Total | B56: =SUBTOTAL(109,B7:B55) -> 5 | D56: =SUBTOTAL(109,D7:D55) -> 10000 | F56: =SUM(F7:F55) -> 4500 | J56: =SUM(J7:J55) -> 7000 | K56: =SUM(K7:K55) -> 10000 | Q56: =IF(Table2[[#This Row],[Age]]<=10,(10-Table2[[#This Row],[Age]])*$P$4,0) -> 0 | R56: 0 | T56: 2016 | AA56: =IF(Table3[[#This Row],[Age]]<=7,(7-Table3[[#This Row],[Age]])*$Z$4,0) -> 0 | AB56: 0 | AD56: 2016 | AK56: =IF(Table4[[#This Row],[Age]]<=10,(10-Table4[[#This Row],[Age]])*$AJ$4,0) -> 0 | AL56: 0 | AN56: 2016 | AU56: =IF(Table5[[#This Row],[Age]]<=20,(20-Table5[[#This Row],[Age]])*$AT$4,0) -> 0 | AV56: 0 | AX56: 2016
Q57: =IF(Table2[[#This Row],[Age]]<=10,(10-Table2[[#This Row],[Age]])*$P$4,0) -> 0 | R57: 0 | T57: 2016 | AA57: =IF(Table3[[#This Row],[Age]]<=7,(7-Table3[[#This Row],[Age]])*$Z$4,0) -> 0 | AB57: 0 | AD57: 2016 | AK57: =IF(Table4[[#This Row],[Age]]<=10,(10-Table4[[#This Row],[Age]])*$AJ$4,0) -> 0 | AL57: 0 | AN57: 2016 | AU57: =IF(Table5[[#This Row],[Age]]<=20,(20-Table5[[#This Row],[Age]])*$AT$4,0) -> 0 | AV57: 0 | AX57: 2016
Q58: =IF(Table2[[#This Row],[Age]]<=10,(10-Table2[[#This Row],[Age]])*$P$4,0) -> 0 | R58: 0 | T58: 2016 | AA58: =IF(Table3[[#This Row],[Age]]<=7,(7-Table3[[#This Row],[Age]])*$Z$4,0) -> 0 | AB58: 0 | AD58: 2016 | AK58: =IF(Table4[[#This Row],[Age]]<=10,(10-Table4[[#This Row],[Age]])*$AJ$4,0) -> 0 | AL58: 0 | AN58: 2016 | AU58: =IF(Table5[[#This Row],[Age]]<=20,(20-Table5[[#This Row],[Age]])*$AT$4,0) -> 0 | AV58: 0 | AX58: 2016
Q59: =IF(Table2[[#This Row],[Age]]<=10,(10-Table2[[#This Row],[Age]])*$P$4,0) -> 0 | R59: 0 | T59: 2016 | AA59: =IF(Table3[[#This Row],[Age]]<=7,(7-Table3[[#This Row],[Age]])*$Z$4,0) -> 0 | AB59: 0 | AD59: 2016 | AK59: =IF(Table4[[#This Row],[Age]]<=10,(10-Table4[[#This Row],[Age]])*$AJ$4,0) -> 0 | AL59: 0 | AN59: 2016 | AU59: =IF(Table5[[#This Row],[Age]]<=20,(20-Table5[[#This Row],[Age]])*$AT$4,0) -> 0 | AV59: 0 | AX59: 2016
Q60: =IF(Table2[[#This Row],[Age]]<=10,(10-Table2[[#This Row],[Age]])*$P$4,0) -> 0 | R60: 0 | T60: 2016 | AA60: =IF(Table3[[#This Row],[Age]]<=7,(7-Table3[[#This Row],[Age]])*$Z$4,0) -> 0 | AB60: 0 | AD60: 2016 | AK60: =IF(Table4[[#This Row],[Age]]<=10,(10-Table4[[#This Row],[Age]])*$AJ$4,0) -> 0 | AL60: 0 | AN60: 2016 | AU60: =IF(Table5[[#This Row],[Age]]<=20,(20-Table5[[#This Row],[Age]])*$AT$4,0) -> 0 | AV60: 0 | AX60: 2016
Q61: =IF(Table2[[#This Row],[Age]]<=10,(10-Table2[[#This Row],[Age]])*$P$4,0) -> 0 | R61: 0 | T61: 2016 | AA61: =IF(Table3[[#This Row],[Age]]<=7,(7-Table3[[#This Row],[Age]])*$Z$4,0) -> 0 | AB61: 0 | AD61: 2016 | AK61: =IF(Table4[[#This Row],[Age]]<=10,(10-Table4[[#This Row],[Age]])*$AJ$4,0) -> 0 | AL61: 0 | AN61: 2016 | AU61: =IF(Table5[[#This Row],[Age]]<=20,(20-Table5[[#This Row],[Age]])*$AT$4,0) -> 0 | AV61: 0 | AX61: 2016
Q62: =IF(Table2[[#This Row],[Age]]<=10,(10-Table2[[#This Row],[Age]])*$P$4,0) -> 0 | R62: 0 | T62: 2016 | AA62: =IF(Table3[[#This Row],[Age]]<=7,(7-Table3[[#This Row],[Age]])*$Z$4,0) -> 0 | AB62: 0 | AD62: 2016 | AK62: =IF(Table4[[#This Row],[Age]]<=10,(10-Table4[[#This Row],[Age]])*$AJ$4,0) -> 0 | AL62: 0 | AN62: 2016 | AU62: =IF(Table5[[#This Row],[Age]]<=20,(20-Table5[[#This Row],[Age]])*$AT$4,0) -> 0 | AV62: 0 | AX62: 2016
Q63: =IF(Table2[[#This Row],[Age]]<=10,(10-Table2[[#This Row],[Age]])*$P$4,0) -> 0 | R63: 0 | T63: 2016 | AA63: =IF(Table3[[#This Row],[Age]]<=7,(7-Table3[[#This Row],[Age]])*$Z$4,0) -> 0 | AB63: 0 | AD63: 2016 | AK63: =IF(Table4[[#This Row],[Age]]<=10,(10-Table4[[#This Row],[Age]])*$AJ$4,0) -> 0 | AL63: 0 | AN63: 2016 | AU63: =IF(Table5[[#This Row],[Age]]<=20,(20-Table5[[#This Row],[Age]])*$AT$4,0) -> 0 | AV63: 0 | AX63: 2016
Q64: =IF(Table2[[#This Row],[Age]]<=10,(10-Table2[[#This Row],[Age]])*$P$4,0) -> 0 | R64: 0 | T64: 2016 | AA64: =IF(Table3[[#This Row],[Age]]<=7,(7-Table3[[#This Row],[Age]])*$Z$4,0) -> 0 | AB64: 0 | AD64: 2016 | AK64: =IF(Table4[[#This Row],[Age]]<=10,(10-Table4[[#This Row],[Age]])*$AJ$4,0) -> 0 | AL64: 0 | AN64: 2016 | AU64: =IF(Table5[[#This Row],[Age]]<=20,(20-Table5[[#This Row],[Age]])*$AT$4,0) -> 0 | AV64: 0 | AX64: 2016
Q65: =IF(Table2[[#This Row],[Age]]<=10,(10-Table2[[#This Row],[Age]])*$P$4,0) -> 0 | R65: 0 | T65: 2016 | AA65: =IF(Table3[[#This Row],[Age]]<=7,(7-Table3[[#This Row],[Age]])*$Z$4,0) -> 0 | AB65: 0 | AD65: 2016 | AK65: =IF(Table4[[#This Row],[Age]]<=10,(10-Table4[[#This Row],[Age]])*$AJ$4,0) -> 0 | AL65: 0 | AN65: 2016 | AU65: =IF(Table5[[#This Row],[Age]]<=20,(20-Table5[[#This Row],[Age]])*$AT$4,0) -> 0 | AV65: 0 | AX65: 2016
Q66: =IF(Table2[[#This Row],[Age]]<=10,(10-Table2[[#This Row],[Age]])*$P$4,0) -> 0 | R66: 0 | T66: 2016 | AA66: =IF(Table3[[#This Row],[Age]]<=7,(7-Table3[[#This Row],[Age]])*$Z$4,0) -> 0 | AB66: 0 | AD66: 2016 | AK66: =IF(Table4[[#This Row],[Age]]<=10,(10-Table4[[#This Row],[Age]])*$AJ$4,0) -> 0 | AL66: 0 | AN66: 2016 | AU66: =IF(Table5[[#This Row],[Age]]<=20,(20-Table5[[#This Row],[Age]])*$AT$4,0) -> 0 | AV66: 0 | AX66: 2016
Q67: =IF(Table2[[#This Row],[Age]]<=10,(10-Table2[[#This Row],[Age]])*$P$4,0) -> 0 | R67: 0 | T67: 2016 | AA67: =IF(Table3[[#This Row],[Age]]<=7,(7-Table3[[#This Row],[Age]])*$Z$4,0) -> 0 | AB67: 0 | AD67: 2016 | AK67: =IF(Table4[[#This Row],[Age]]<=10,(10-Table4[[#This Row],[Age]])*$AJ$4,0) -> 0 | AL67: 0 | AN67: 2016 | AU67: =IF(Table5[[#This Row],[Age]]<=20,(20-Table5[[#This Row],[Age]])*$AT$4,0) -> 0 | AV67: 0 | AX67: 2016
Q68: =IF(Table2[[#This Row],[Age]]<=10,(10-Table2[[#This Row],[Age]])*$P$4,0) -> 0 | R68: 0 | T68: 2016 | AA68: =IF(Table3[[#This Row],[Age]]<=7,(7-Table3[[#This Row],[Age]])*$Z$4,0) -> 0 | AB68: 0 | AD68: 2016 | AK68: =IF(Table4[[#This Row],[Age]]<=10,(10-Table4[[#This Row],[Age]])*$AJ$4,0) -> 0 | AL68: 0 | AN68: 2016 | AU68: =IF(Table5[[#This Row],[Age]]<=20,(20-Table5[[#This Row],[Age]])*$AT$4,0) -> 0 | AV68: 0 | AX68: 2016
Q69: =IF(Table2[[#This Row],[Age]]<=10,(10-Table2[[#This Row],[Age]])*$P$4,0) -> 0 | R69: 0 | T69: 2016 | AA69: =IF(Table3[[#This Row],[Age]]<=7,(7-Table3[[#This Row],[Age]])*$Z$4,0) -> 0 | AB69: 0 | AD69: 2016 | AK69: =IF(Table4[[#This Row],[Age]]<=10,(10-Table4[[#This Row],[Age]])*$AJ$4,0) -> 0 | AL69: 0 | AN69: 2016 | AU69: =IF(Table5[[#This Row],[Age]]<=20,(20-Table5[[#This Row],[Age]])*$AT$4,0) -> 0 | AV69: 0 | AX69: 2016
Q70: =IF(Table2[[#This Row],[Age]]<=10,(10-Table2[[#This Row],[Age]])*$P$4,0) -> 0 | R70: 0 | T70: 2016 | AA70: =IF(Table3[[#This Row],[Age]]<=7,(7-Table3[[#This Row],[Age]])*$Z$4,0) -> 0 | AB70: 0 | AD70: 2016 | AK70: =IF(Table4[[#This Row],[Age]]<=10,(10-Table4[[#This Row],[Age]])*$AJ$4,0) -> 0 | AL70: 0 | AN70: 2016 | AU70: =IF(Table5[[#This Row],[Age]]<=20,(20-Table5[[#This Row],[Age]])*$AT$4,0) -> 0 | AV70: 0 | AX70: 2016
Q71: =IF(Table2[[#This Row],[Age]]<=10,(10-Table2[[#This Row],[Age]])*$P$4,0) -> 0 | R71: 0 | T71: =$P$3-$O71 -> 2016 | AA71: =IF(Table3[[#This Row],[Age]]<=7,(7-Table3[[#This Row],[Age]])*$Z$4,0) -> 0 | AB71: 0 | AD71: 2016 | AK71: =IF(Table4[[#This Row],[Age]]<=10,(10-Table4[[#This Row],[Age]])*$AJ$4,0) -> 0 | AL71: 0 | AN71: 2016 | AU71: =IF(Table5[[#This Row],[Age]]<=20,(20-Table5[[#This Row],[Age]])*$AT$4,0) -> 0 | AV71: 0 | AX71: 2016
Q72: =IF(Table2[[#This Row],[Age]]<=10,(10-Table2[[#This Row],[Age]])*$P$4,0) -> 0 | R72: =P72*Q72 -> 0 | T72: 2016 | AA72: =IF(Table3[[#This Row],[Age]]<=7,(7-Table3[[#This Row],[Age]])*$Z$4,0) -> 0 | AB72: =Z72*AA72 -> 0 | AD72: =$Z$3-Y72 -> 2016 | AK72: =IF(Table4[[#This Row],[Age]]<=10,(10-Table4[[#This Row],[Age]])*$AJ$4,0) -> 0 | AL72: =AJ72*AK72 -> 0 | AN72: =$AJ$3-AI72 -> 2016 | AU72: =IF(Table5[[#This Row],[Age]]<=20,(20-Table5[[#This Row],[Age]])*$AT$4,0) -> 0 | AV72: =AT72*AU72 -> 0 | AX72: 2016
Q73: =IF(Table2[[#This Row],[Age]]<=10,(10-Table2[[#This Row],[Age]])*$P$4,0) -> 0 | R73: 0 | T73: 2016 | AA73: =IF(Table3[[#This Row],[Age]]<=7,(7-Table3[[#This Row],[Age]])*$Z$4,0) -> 0 | AB73: 0 | AD73: 2016 | AK73: =IF(Table4[[#This Row],[Age]]<=10,(10-Table4[[#This Row],[Age]])*$AJ$4,0) -> 0 | AL73: 0 | AN73: 2016 | AU73: =IF(Table5[[#This Row],[Age]]<=20,(20-Table5[[#This Row],[Age]])*$AT$4,0) -> 0 | AV73: 0 | AX73: =$AT$3-AS73 -> 2016
Q74: =IF(Table2[[#This Row],[Age]]<=10,(10-Table2[[#This Row],[Age]])*$P$4,0) -> 0 | R74: 0 | T74: 2016 | AA74: =IF(Table3[[#This Row],[Age]]<=7,(7-Table3[[#This Row],[Age]])*$Z$4,0) -> 0 | AB74: 0 | AD74: 2016 | AK74: =IF(Table4[[#This Row],[Age]]<=10,(10-Table4[[#This Row],[Age]])*$AJ$4,0) -> 0 | AL74: 0 | AN74: 2016 | AU74: =IF(Table5[[#This Row],[Age]]<=20,(20-Table5[[#This Row],[Age]])*$AT$4,0) -> 0 | AV74: 0 | AX74: 2016
Q75: =IF(Table2[[#This Row],[Age]]<=10,(10-Table2[[#This Row],[Age]])*$P$4,0) -> 0 | R75: 0 | T75: 2016 | AA75: =IF(Table3[[#This Row],[Age]]<=7,(7-Table3[[#This Row],[Age]])*$Z$4,0) -> 0 | AB75: 0 | AD75: 2016 | AK75: =IF(Table4[[#This Row],[Age]]<=10,(10-Table4[[#This Row],[Age]])*$AJ$4,0) -> 0 | AL75: 0 | AN75: 2016 | AU75: =IF(Table5[[#This Row],[Age]]<=20,(20-Table5[[#This Row],[Age]])*$AT$4,0) -> 0 | AV75: 0 | AX75: 2016
Q76: =IF(Table2[[#This Row],[Age]]<=10,(10-Table2[[#This Row],[Age]])*$P$4,0) -> 0 | R76: 0 | T76: 2016 | AA76: =IF(Table3[[#This Row],[Age]]<=7,(7-Table3[[#This Row],[Age]])*$Z$4,0) -> 0 | AB76: 0 | AD76: 2016 | AK76: =IF(Table4[[#This Row],[Age]]<=10,(10-Table4[[#This Row],[Age]])*$AJ$4,0) -> 0 | AL76: 0 | AN76: 2016 | AU76: =IF(Table5[[#This Row],[Age]]<=20,(20-Table5[[#This Row],[Age]])*$AT$4,0) -> 0 | AV76: 0 | AX76: 2016
Q77: =IF(Table2[[#This Row],[Age]]<=10,(10-Table2[[#This Row],[Age]])*$P$4,0) -> 0 | R77: 0 | T77: 2016 | AA77: =IF(Table3[[#This Row],[Age]]<=7,(7-Table3[[#This Row],[Age]])*$Z$4,0) -> 0 | AB77: 0 | AD77: 2016 | AK77: =IF(Table4[[#This Row],[Age]]<=10,(10-Table4[[#This Row],[Age]])*$AJ$4,0) -> 0 | AL77: 0 | AN77: 2016 | AU77: =IF(Table5[[#This Row],[Age]]<=20,(20-Table5[[#This Row],[Age]])*$AT$4,0) -> 0 | AV77: 0 | AX77: 2016
Q78: =IF(Table2[[#This Row],[Age]]<=10,(10-Table2[[#This Row],[Age]])*$P$4,0) -> 0 | R78: 0 | T78: 2016 | AA78: =IF(Table3[[#This Row],[Age]]<=7,(7-Table3[[#This Row],[Age]])*$Z$4,0) -> 0 | AB78: 0 | AD78: 2016 | AK78: =IF(Table4[[#This Row],[Age]]<=10,(10-Table4[[#This Row],[Age]])*$AJ$4,0) -> 0 | AL78: 0 | AN78: 2016 | AU78: =IF(Table5[[#This Row],[Age]]<=20,(20-Table5[[#This Row],[Age]])*$AT$4,0) -> 0 | AV78: 0 | AX78: 2016
Q79: =IF(Table2[[#This Row],[Age]]<=10,(10-Table2[[#This Row],[Age]])*$P$4,0) -> 0 | R79: 0 | T79: 2016 | AA79: =IF(Table3[[#This Row],[Age]]<=7,(7-Table3[[#This Row],[Age]])*$Z$4,0) -> 0 | AB79: 0 | AD79: 2016 | AK79: =IF(Table4[[#This Row],[Age]]<=10,(10-Table4[[#This Row],[Age]])*$AJ$4,0) -> 0 | AL79: 0 | AN79: 2016 | AU79: =IF(Table5[[#This Row],[Age]]<=20,(20-Table5[[#This Row],[Age]])*$AT$4,0) -> 0 | AV79: 0 | AX79: 2016
Q80: =IF(Table2[[#This Row],[Age]]<=10,(10-Table2[[#This Row],[Age]])*$P$4,0) -> 0 | R80: 0 | T80: 2016 | AA80: =IF(Table3[[#This Row],[Age]]<=7,(7-Table3[[#This Row],[Age]])*$Z$4,0) -> 0 | AB80: 0 | AD80: 2016 | AK80: =IF(Table4[[#This Row],[Age]]<=10,(10-Table4[[#This Row],[Age]])*$AJ$4,0) -> 0 | AL80: 0 | AN80: 2016 | AU80: =IF(Table5[[#This Row],[Age]]<=20,(20-Table5[[#This Row],[Age]])*$AT$4,0) -> 0 | AV80: 0 | AX80: 2016
Q81: =IF(Table2[[#This Row],[Age]]<=10,(10-Table2[[#This Row],[Age]])*$P$4,0) -> 0 | R81: 0 | T81: 2016 | AA81: =IF(Table3[[#This Row],[Age]]<=7,(7-Table3[[#This Row],[Age]])*$Z$4,0) -> 0 | AB81: 0 | AD81: 2016 | AK81: =IF(Table4[[#This Row],[Age]]<=10,(10-Table4[[#This Row],[Age]])*$AJ$4,0) -> 0 | AL81: 0 | AN81: 2016 | AU81: =IF(Table5[[#This Row],[Age]]<=20,(20-Table5[[#This Row],[Age]])*$AT$4,0) -> 0 | AV81: 0 | AX81: 2016
Q82: =IF(Table2[[#This Row],[Age]]<=10,(10-Table2[[#This Row],[Age]])*$P$4,0) -> 0 | R82: 0 | T82: 2016 | AA82: =IF(Table3[[#This Row],[Age]]<=7,(7-Table3[[#This Row],[Age]])*$Z$4,0) -> 0 | AB82: 0 | AD82: 2016 | AK82: =IF(Table4[[#This Row],[Age]]<=10,(10-Table4[[#This Row],[Age]])*$AJ$4,0) -> 0 | AL82: 0 | AN82: 2016 | AU82: =IF(Table5[[#This Row],[Age]]<=20,(20-Table5[[#This Row],[Age]])*$AT$4,0) -> 0 | AV82: 0 | AX82: 2016
Q83: =IF(Table2[[#This Row],[Age]]<=10,(10-Table2[[#This Row],[Age]])*$P$4,0) -> 0 | R83: 0 | T83: 2016 | AA83: =IF(Table3[[#This Row],[Age]]<=7,(7-Table3[[#This Row],[Age]])*$Z$4,0) -> 0 | AB83: 0 | AD83: 2016 | AK83: =IF(Table4[[#This Row],[Age]]<=10,(10-Table4[[#This Row],[Age]])*$AJ$4,0) -> 0 | AL83: 0 | AN83: 2016 | AU83: =IF(Table5[[#This Row],[Age]]<=20,(20-Table5[[#This Row],[Age]])*$AT$4,0) -> 0 | AV83: 0 | AX83: 2016
Q84: =IF(Table2[[#This Row],[Age]]<=10,(10-Table2[[#This Row],[Age]])*$P$4,0) -> 0 | R84: 0 | T84: 2016 | AA84: =IF(Table3[[#This Row],[Age]]<=7,(7-Table3[[#This Row],[Age]])*$Z$4,0) -> 0 | AB84: 0 | AD84: 2016 | AK84: =IF(Table4[[#This Row],[Age]]<=10,(10-Table4[[#This Row],[Age]])*$AJ$4,0) -> 0 | AL84: 0 | AN84: 2016 | AU84: =IF(Table5[[#This Row],[Age]]<=20,(20-Table5[[#This Row],[Age]])*$AT$4,0) -> 0 | AV84: 0 | AX84: 2016
Q85: =IF(Table2[[#This Row],[Age]]<=10,(10-Table2[[#This Row],[Age]])*$P$4,0) -> 0 | R85: 0 | T85: 2016 | AA85: =IF(Table3[[#This Row],[Age]]<=7,(7-Table3[[#This Row],[Age]])*$Z$4,0) -> 0 | AB85: 0 | AD85: 2016 | AK85: =IF(Table4[[#This Row],[Age]]<=10,(10-Table4[[#This Row],[Age]])*$AJ$4,0) -> 0 | AL85: 0 | AN85: 2016 | AU85: =IF(Table5[[#This Row],[Age]]<=20,(20-Table5[[#This Row],[Age]])*$AT$4,0) -> 0 | AV85: 0 | AX85: 2016
Q86: =IF(Table2[[#This Row],[Age]]<=10,(10-Table2[[#This Row],[Age]])*$P$4,0) -> 0 | R86: 0 | T86: 2016 | AA86: =IF(Table3[[#This Row],[Age]]<=7,(7-Table3[[#This Row],[Age]])*$Z$4,0) -> 0 | AB86: 0 | AD86: 2016 | AK86: =IF(Table4[[#This Row],[Age]]<=10,(10-Table4[[#This Row],[Age]])*$AJ$4,0) -> 0 | AL86: 0 | AN86: 2016 | AU86: =IF(Table5[[#This Row],[Age]]<=20,(20-Table5[[#This Row],[Age]])*$AT$4,0) -> 0 | AV86: 0 | AX86: 2016
Q87: =IF(Table2[[#This Row],[Age]]<=10,(10-Table2[[#This Row],[Age]])*$P$4,0) -> 0 | R87: 0 | T87: 2016 | AA87: =IF(Table3[[#This Row],[Age]]<=7,(7-Table3[[#This Row],[Age]])*$Z$4,0) -> 0 | AB87: 0 | AD87: 2016 | AK87: =IF(Table4[[#This Row],[Age]]<=10,(10-Table4[[#This Row],[Age]])*$AJ$4,0) -> 0 | AL87: 0 | AN87: 2016 | AU87: =IF(Table5[[#This Row],[Age]]<=20,(20-Table5[[#This Row],[Age]])*$AT$4,0) -> 0 | AV87: 0 | AX87: 2016
Q88: =IF(Table2[[#This Row],[Age]]<=10,(10-Table2[[#This Row],[Age]])*$P$4,0) -> 0 | R88: 0 | T88: 2016 | AA88: =IF(Table3[[#This Row],[Age]]<=7,(7-Table3[[#This Row],[Age]])*$Z$4,0) -> 0 | AB88: 0 | AD88: 2016 | AK88: =IF(Table4[[#This Row],[Age]]<=10,(10-Table4[[#This Row],[Age]])*$AJ$4,0) -> 0 | AL88: 0 | AN88: 2016 | AU88: =IF(Table5[[#This Row],[Age]]<=20,(20-Table5[[#This Row],[Age]])*$AT$4,0) -> 0 | AV88: 0 | AX88: 2016
Q89: =IF(Table2[[#This Row],[Age]]<=10,(10-Table2[[#This Row],[Age]])*$P$4,0) -> 0 | R89: 0 | T89: 2016 | AA89: =IF(Table3[[#This Row],[Age]]<=7,(7-Table3[[#This Row],[Age]])*$Z$4,0) -> 0 | AB89: 0 | AD89: 2016 | AK89: =IF(Table4[[#This Row],[Age]]<=10,(10-Table4[[#This Row],[Age]])*$AJ$4,0) -> 0 | AL89: 0 | AN89: 2016 | AU89: =IF(Table5[[#This Row],[Age]]<=20,(20-Table5[[#This Row],[Age]])*$AT$4,0) -> 0 | AV89: 0 | AX89: 2016
Q90: =IF(Table2[[#This Row],[Age]]<=10,(10-Table2[[#This Row],[Age]])*$P$4,0) -> 0 | R90: 0 | T90: 2016 | AA90: =IF(Table3[[#This Row],[Age]]<=7,(7-Table3[[#This Row],[Age]])*$Z$4,0) -> 0 | AB90: 0 | AD90: 2016 | AK90: =IF(Table4[[#This Row],[Age]]<=10,(10-Table4[[#This Row],[Age]])*$AJ$4,0) -> 0 | AL90: 0 | AN90: 2016 | AU90: =IF(Table5[[#This Row],[Age]]<=20,(20-Table5[[#This Row],[Age]])*$AT$4,0) -> 0 | AV90: 0 | AX90: 2016
Q91: =IF(Table2[[#This Row],[Age]]<=10,(10-Table2[[#This Row],[Age]])*$P$4,0) -> 0 | R91: 0 | T91: 2016 | AA91: =IF(Table3[[#This Row],[Age]]<=7,(7-Table3[[#This Row],[Age]])*$Z$4,0) -> 0 | AB91: 0 | AD91: 2016 | AK91: =IF(Table4[[#This Row],[Age]]<=10,(10-Table4[[#This Row],[Age]])*$AJ$4,0) -> 0 | AL91: 0 | AN91: 2016 | AU91: =IF(Table5[[#This Row],[Age]]<=20,(20-Table5[[#This Row],[Age]])*$AT$4,0) -> 0 | AV91: 0 | AX91: 2016
Q92: =IF(Table2[[#This Row],[Age]]<=10,(10-Table2[[#This Row],[Age]])*$P$4,0) -> 0 | R92: 0 | T92: 2016 | AA92: =IF(Table3[[#This Row],[Age]]<=7,(7-Table3[[#This Row],[Age]])*$Z$4,0) -> 0 | AB92: 0 | AD92: 2016 | AK92: =IF(Table4[[#This Row],[Age]]<=10,(10-Table4[[#This Row],[Age]])*$AJ$4,0) -> 0 | AL92: 0 | AN92: 2016 | AU92: =IF(Table5[[#This Row],[Age]]<=20,(20-Table5[[#This Row],[Age]])*$AT$4,0) -> 0 | AV92: 0 | AX92: 2016
Q93: =IF(Table2[[#This Row],[Age]]<=10,(10-Table2[[#This Row],[Age]])*$P$4,0) -> 0 | R93: 0 | T93: 2016 | AA93: =IF(Table3[[#This Row],[Age]]<=7,(7-Table3[[#This Row],[Age]])*$Z$4,0) -> 0 | AB93: 0 | AD93: 2016 | AK93: =IF(Table4[[#This Row],[Age]]<=10,(10-Table4[[#This Row],[Age]])*$AJ$4,0) -> 0 | AL93: 0 | AN93: 2016 | AU93: =IF(Table5[[#This Row],[Age]]<=20,(20-Table5[[#This Row],[Age]])*$AT$4,0) -> 0 | AV93: 0 | AX93: 2016
Q94: =IF(Table2[[#This Row],[Age]]<=10,(10-Table2[[#This Row],[Age]])*$P$4,0) -> 0 | R94: 0 | T94: 2016 | AA94: =IF(Table3[[#This Row],[Age]]<=7,(7-Table3[[#This Row],[Age]])*$Z$4,0) -> 0 | AB94: 0 | AD94: 2016 | AK94: =IF(Table4[[#This Row],[Age]]<=10,(10-Table4[[#This Row],[Age]])*$AJ$4,0) -> 0 | AL94: 0 | AN94: 2016 | AU94: =IF(Table5[[#This Row],[Age]]<=20,(20-Table5[[#This Row],[Age]])*$AT$4,0) -> 0 | AV94: 0 | AX94: 2016
Q95: =IF(Table2[[#This Row],[Age]]<=10,(10-Table2[[#This Row],[Age]])*$P$4,0) -> 0 | R95: 0 | T95: 2016 | AA95: =IF(Table3[[#This Row],[Age]]<=7,(7-Table3[[#This Row],[Age]])*$Z$4,0) -> 0 | AB95: 0 | AD95: 2016 | AK95: =IF(Table4[[#This Row],[Age]]<=10,(10-Table4[[#This Row],[Age]])*$AJ$4,0) -> 0 | AL95: 0 | AN95: 2016 | AU95: =IF(Table5[[#This Row],[Age]]<=20,(20-Table5[[#This Row],[Age]])*$AT$4,0) -> 0 | AV95: 0 | AX95: 2016
Q96: =IF(Table2[[#This Row],[Age]]<=10,(10-Table2[[#This Row],[Age]])*$P$4,0) -> 0 | R96: 0 | T96: 2016 | AA96: =IF(Table3[[#This Row],[Age]]<=7,(7-Table3[[#This Row],[Age]])*$Z$4,0) -> 0 | AB96: 0 | AD96: 2016 | AK96: =IF(Table4[[#This Row],[Age]]<=10,(10-Table4[[#This Row],[Age]])*$AJ$4,0) -> 0 | AL96: 0 | AN96: 2016 | AU96: =IF(Table5[[#This Row],[Age]]<=20,(20-Table5[[#This Row],[Age]])*$AT$4,0) -> 0 | AV96: 0 | AX96: 2016
Q97: =IF(Table2[[#This Row],[Age]]<=10,(10-Table2[[#This Row],[Age]])*$P$4,0) -> 0 | R97: 0 | T97: 2016 | AA97: =IF(Table3[[#This Row],[Age]]<=7,(7-Table3[[#This Row],[Age]])*$Z$4,0) -> 0 | AB97: 0 | AD97: 2016 | AK97: =IF(Table4[[#This Row],[Age]]<=10,(10-Table4[[#This Row],[Age]])*$AJ$4,0) -> 0 | AL97: 0 | AN97: 2016 | AU97: =IF(Table5[[#This Row],[Age]]<=20,(20-Table5[[#This Row],[Age]])*$AT$4,0) -> 0 | AV97: 0 | AX97: 2016
Q98: =IF(Table2[[#This Row],[Age]]<=10,(10-Table2[[#This Row],[Age]])*$P$4,0) -> 0 | R98: 0 | T98: 2016 | AA98: =IF(Table3[[#This Row],[Age]]<=7,(7-Table3[[#This Row],[Age]])*$Z$4,0) -> 0 | AB98: 0 | AD98: 2016 | AK98: =IF(Table4[[#This Row],[Age]]<=10,(10-Table4[[#This Row],[Age]])*$AJ$4,0) -> 0 | AL98: 0 | AN98: 2016 | AU98: =IF(Table5[[#This Row],[Age]]<=20,(20-Table5[[#This Row],[Age]])*$AT$4,0) -> 0 | AV98: 0 | AX98: 2016
Q99: =IF(Table2[[#This Row],[Age]]<=10,(10-Table2[[#This Row],[Age]])*$P$4,0) -> 0 | R99: 0 | T99: 2016 | AA99: =IF(Table3[[#This Row],[Age]]<=7,(7-Table3[[#This Row],[Age]])*$Z$4,0) -> 0 | AB99: 0 | AD99: 2016 | AK99: =IF(Table4[[#This Row],[Age]]<=10,(10-Table4[[#This Row],[Age]])*$AJ$4,0) -> 0 | AL99: 0 | AN99: 2016 | AU99: =IF(Table5[[#This Row],[Age]]<=20,(20-Table5[[#This Row],[Age]])*$AT$4,0) -> 0 | AV99: 0 | AX99: 2016
Q100: =IF(Table2[[#This Row],[Age]]<=10,(10-Table2[[#This Row],[Age]])*$P$4,0) -> 0 | R100: 0 | T100: 2016 | AA100: =IF(Table3[[#This Row],[Age]]<=7,(7-Table3[[#This Row],[Age]])*$Z$4,0) -> 0 | AB100: 0 | AD100: 2016 | AK100: =IF(Table4[[#This Row],[Age]]<=10,(10-Table4[[#This Row],[Age]])*$AJ$4,0) -> 0 | AL100: 0 | AN100: 2016 | AU100: =IF(Table5[[#This Row],[Age]]<=20,(20-Table5[[#This Row],[Age]])*$AT$4,0) -> 0 | AV100: 0 | AX100: 2016
Q101: =IF(Table2[[#This Row],[Age]]<=10,(10-Table2[[#This Row],[Age]])*$P$4,0) -> 0 | R101: 0 | T101: 2016 | AA101: =IF(Table3[[#This Row],[Age]]<=7,(7-Table3[[#This Row],[Age]])*$Z$4,0) -> 0 | AB101: 0 | AD101: 2016 | AK101: =IF(Table4[[#This Row],[Age]]<=10,(10-Table4[[#This Row],[Age]])*$AJ$4,0) -> 0 | AL101: 0 | AN101: 2016 | AU101: =IF(Table5[[#This Row],[Age]]<=20,(20-Table5[[#This Row],[Age]])*$AT$4,0) -> 0 | AV101: 0 | AX101: 2016
Q102: =IF(Table2[[#This Row],[Age]]<=10,(10-Table2[[#This Row],[Age]])*$P$4,0) -> 0 | R102: 0 | T102: 2016 | AA102: =IF(Table3[[#This Row],[Age]]<=7,(7-Table3[[#This Row],[Age]])*$Z$4,0) -> 0 | AB102: 0 | AD102: 2016 | AK102: =IF(Table4[[#This Row],[Age]]<=10,(10-Table4[[#This Row],[Age]])*$AJ$4,0) -> 0 | AL102: 0 | AN102: 2016 | AU102: =IF(Table5[[#This Row],[Age]]<=20,(20-Table5[[#This Row],[Age]])*$AT$4,0) -> 0 | AV102: 0 | AX102: 2016
Q103: =IF(Table2[[#This Row],[Age]]<=10,(10-Table2[[#This Row],[Age]])*$P$4,0) -> 0 | R103: 0 | T103: 2016 | AA103: =IF(Table3[[#This Row],[Age]]<=7,(7-Table3[[#This Row],[Age]])*$Z$4,0) -> 0 | AB103: 0 | AD103: 2016 | AK103: =IF(Table4[[#This Row],[Age]]<=10,(10-Table4[[#This Row],[Age]])*$AJ$4,0) -> 0 | AL103: 0 | AN103: 2016 | AU103: =IF(Table5[[#This Row],[Age]]<=20,(20-Table5[[#This Row],[Age]])*$AT$4,0) -> 0 | AV103: 0 | AX103: 2016
Q104: =IF(Table2[[#This Row],[Age]]<=10,(10-Table2[[#This Row],[Age]])*$P$4,0) -> 0 | R104: 0 | T104: 2016 | AA104: =IF(Table3[[#This Row],[Age]]<=7,(7-Table3[[#This Row],[Age]])*$Z$4,0) -> 0 | AB104: 0 | AD104: 2016 | AK104: =IF(Table4[[#This Row],[Age]]<=10,(10-Table4[[#This Row],[Age]])*$AJ$4,0) -> 0 | AL104: 0 | AN104: 2016 | AU104: =IF(Table5[[#This Row],[Age]]<=20,(20-Table5[[#This Row],[Age]])*$AT$4,0) -> 0 | AV104: 0 | AX104: 2016
Q105: =IF(Table2[[#This Row],[Age]]<=10,(10-Table2[[#This Row],[Age]])*$P$4,0) -> 0 | R105: 0 | T105: 2016 | AA105: =IF(Table3[[#This Row],[Age]]<=7,(7-Table3[[#This Row],[Age]])*$Z$4,0) -> 0 | AB105: 0 | AD105: 2016 | AK105: =IF(Table4[[#This Row],[Age]]<=10,(10-Table4[[#This Row],[Age]])*$AJ$4,0) -> 0 | AL105: 0 | AN105: 2016 | AU105: =IF(Table5[[#This Row],[Age]]<=20,(20-Table5[[#This Row],[Age]])*$AT$4,0) -> 0 | AV105: 0 | AX105: 2016
Q106: =IF(Table2[[#This Row],[Age]]<=10,(10-Table2[[#This Row],[Age]])*$P$4,0) -> 0 | R106: 0 | T106: 2016 | AA106: =IF(Table3[[#This Row],[Age]]<=7,(7-Table3[[#This Row],[Age]])*$Z$4,0) -> 0 | AB106: 0 | AD106: 2016 | AK106: =IF(Table4[[#This Row],[Age]]<=10,(10-Table4[[#This Row],[Age]])*$AJ$4,0) -> 0 | AL106: 0 | AN106: 2016 | AU106: =IF(Table5[[#This Row],[Age]]<=20,(20-Table5[[#This Row],[Age]])*$AT$4,0) -> 0 | AV106: 0 | AX106: 2016
Q107: =IF(Table2[[#This Row],[Age]]<=10,(10-Table2[[#This Row],[Age]])*$P$4,0) -> 0 | R107: 0 | T107: 2016 | AA107: =IF(Table3[[#This Row],[Age]]<=7,(7-Table3[[#This Row],[Age]])*$Z$4,0) -> 0 | AB107: 0 | AD107: 2016 | AK107: =IF(Table4[[#This Row],[Age]]<=10,(10-Table4[[#This Row],[Age]])*$AJ$4,0) -> 0 | AL107: 0 | AN107: 2016 | AU107: =IF(Table5[[#This Row],[Age]]<=20,(20-Table5[[#This Row],[Age]])*$AT$4,0) -> 0 | AV107: 0 | AX107: 2016
Q108: =IF(Table2[[#This Row],[Age]]<=10,(10-Table2[[#This Row],[Age]])*$P$4,0) -> 0 | R108: 0 | T108: 2016 | AA108: =IF(Table3[[#This Row],[Age]]<=7,(7-Table3[[#This Row],[Age]])*$Z$4,0) -> 0 | AB108: 0 | AD108: 2016 | AK108: =IF(Table4[[#This Row],[Age]]<=10,(10-Table4[[#This Row],[Age]])*$AJ$4,0) -> 0 | AL108: 0 | AN108: 2016 | AU108: =IF(Table5[[#This Row],[Age]]<=20,(20-Table5[[#This Row],[Age]])*$AT$4,0) -> 0 | AV108: 0 | AX108: 2016
Q109: =IF(Table2[[#This Row],[Age]]<=10,(10-Table2[[#This Row],[Age]])*$P$4,0) -> 0 | R109: 0 | T109: 2016 | AA109: =IF(Table3[[#This Row],[Age]]<=7,(7-Table3[[#This Row],[Age]])*$Z$4,0) -> 0 | AB109: 0 | AD109: 2016 | AK109: =IF(Table4[[#This Row],[Age]]<=10,(10-Table4[[#This Row],[Age]])*$AJ$4,0) -> 0 | AL109: 0 | AN109: 2016 | AU109: =IF(Table5[[#This Row],[Age]]<=20,(20-Table5[[#This Row],[Age]])*$AT$4,0) -> 0 | AV109: 0 | AX109: 2016
Q110: =IF(Table2[[#This Row],[Age]]<=10,(10-Table2[[#This Row],[Age]])*$P$4,0) -> 0 | R110: 0 | T110: 2016 | AA110: =IF(Table3[[#This Row],[Age]]<=7,(7-Table3[[#This Row],[Age]])*$Z$4,0) -> 0 | AB110: 0 | AD110: 2016 | AK110: =IF(Table4[[#This Row],[Age]]<=10,(10-Table4[[#This Row],[Age]])*$AJ$4,0) -> 0 | AL110: 0 | AN110: 2016 | AU110: =IF(Table5[[#This Row],[Age]]<=20,(20-Table5[[#This Row],[Age]])*$AT$4,0) -> 0 | AV110: 0 | AX110: 2016
Q111: =IF(Table2[[#This Row],[Age]]<=10,(10-Table2[[#This Row],[Age]])*$P$4,0) -> 0 | R111: 0 | T111: 2016 | AA111: =IF(Table3[[#This Row],[Age]]<=7,(7-Table3[[#This Row],[Age]])*$Z$4,0) -> 0 | AB111: 0 | AD111: 2016 | AK111: =IF(Table4[[#This Row],[Age]]<=10,(10-Table4[[#This Row],[Age]])*$AJ$4,0) -> 0 | AL111: 0 | AN111: 2016 | AU111: =IF(Table5[[#This Row],[Age]]<=20,(20-Table5[[#This Row],[Age]])*$AT$4,0) -> 0 | AV111: 0 | AX111: 2016
Q112: =IF(Table2[[#This Row],[Age]]<=10,(10-Table2[[#This Row],[Age]])*$P$4,0) -> 0 | R112: 0 | T112: 2016 | AA112: =IF(Table3[[#This Row],[Age]]<=7,(7-Table3[[#This Row],[Age]])*$Z$4,0) -> 0 | AB112: 0 | AD112: 2016 | AK112: =IF(Table4[[#This Row],[Age]]<=10,(10-Table4[[#This Row],[Age]])*$AJ$4,0) -> 0 | AL112: 0 | AN112: 2016 | AU112: =IF(Table5[[#This Row],[Age]]<=20,(20-Table5[[#This Row],[Age]])*$AT$4,0) -> 0 | AV112: 0 | AX112: 2016
Q113: =IF(Table2[[#This Row],[Age]]<=10,(10-Table2[[#This Row],[Age]])*$P$4,0) -> 0 | R113: 0 | T113: 2016 | AA113: =IF(Table3[[#This Row],[Age]]<=7,(7-Table3[[#This Row],[Age]])*$Z$4,0) -> 0 | AB113: 0 | AD113: 2016 | AK113: =IF(Table4[[#This Row],[Age]]<=10,(10-Table4[[#This Row],[Age]])*$AJ$4,0) -> 0 | AL113: 0 | AN113: 2016 | AU113: =IF(Table5[[#This Row],[Age]]<=20,(20-Table5[[#This Row],[Age]])*$AT$4,0) -> 0 | AV113: 0 | AX113: 2016
P114: =SUM(P7:P113) -> 35000 | R114: =SUBTOTAL(109,R7:R113) -> 31500 | S114: =SUBTOTAL(109,S7:S113) -> 35000 | U114: =SUBTOTAL(109,U7:U113) -> 35000 | Z114: =SUM(Z7:Z113) -> 38000 | AB114: =SUBTOTAL(109,AB7:AB113) -> 27300 | AC114: =SUBTOTAL(109,AC7:AC113) -> 31000 | AE114: =SUBTOTAL(109,AE7:AE113) -> 45000 | AJ114: =SUBTOTAL(109,AJ7:AJ113) -> 6000 | AL114: =SUBTOTAL(109,AL7:AL113) -> 5400 | AM114: =SUBTOTAL(109,AM7:AM113) -> 5500 | AO114: =SUBTOTAL(109,AO7:AO113) -> 6000 | AT114: =SUM(AT7:AT113) -> 25000 | AV114: =SUBTOTAL(109,AV7:AV113) -> 21250 | AW114: =SUBTOTAL(109,AW7:AW113) -> 24000 | AY114: =SUBTOTAL(109,AY7:AY113) -> 25000

Sheet Inventory Adjustment
B1: Inventory Adjustment Record (Crops, Feed, Livestock, Supplies, Prepaid Expenses, and Accounts Receivable)
B2: Adapted from USDA Form FmHA 432-2 (Rev. 7-94) | H2: * Current Year $ Value __________ - Previous Year $ Value __________ = Change from Previous Year __________
D3: Year: | E3: 2013 | H3: Year: | I3: 2014 | L3: Year: | P3: Year: | T3: Year:
C4: Crops and Feed | D4: Units | F4: Price per Unit | G4: $ Value | H4: Units | J4: Price per Unit | K4: $ Value | L4: Units | N4: Price per Unit | O4: $ Value | P4: Units | R4: Price per Unit | S4: $ Value | T4: Units | V4: Price per Unit | W4: $ Value
B5: Current Farm Assets | G5: =D5*F5 -> 0 | K5: =H5*J5 -> 0 | L5: 45 | N5: 35 | O5: =L5*N5 -> 1575 | P5: 50 | R5: 35 | S5: =P5*R5 -> 1750 | T5: 50 | V5: 35 | W5: =T5*V5 -> 1750
G6: =D6*F6 -> 0 | K6: =H6*J6 -> 0 | O6: =L6*N6 -> 0 | S6: =P6*R6 -> 0 | W6: =T6*V6 -> 0
G7: =D7*F7 -> 0 | K7: =H7*J7 -> 0 | O7: =L7*N7 -> 0 | S7: =P7*R7 -> 0 | W7: =T7*V7 -> 0
G8: 0 | K8: 0 | O8: 0 | S8: 0 | W8: 0
G9: 0 | K9: 0 | O9: 0 | S9: 0 | W9: 0
G10: 0 | K10: 0 | O10: 0 | S10: 0 | W10: 0
G11: 0 | K11: 0 | O11: 0 | S11: 0 | W11: 0
G12: 0 | K12: 0 | O12: 0 | S12: 0 | W12: 0
G13: 0 | K13: 0 | O13: 0 | S13: 0 | W13: 0
G14: =D14*F14 -> 0 | K14: =H14*J14 -> 0 | O14: =L14*N14 -> 0 | S14: =P14*R14 -> 0 | W14: =T14*V14 -> 0
C15: Total Value of Crops and Feed | G15: =SUM(G5:G14) -> 0 | K15: =SUM(K5:K14) -> 0 | O15: =SUM(O5:O14) -> 1575 | S15: =SUM(S5:S14) -> 1750 | W15: =SUM(W5:W14) -> 1750
C16: *Crop Inventory Change from Previous Year | K16: =K15-G15 -> 0 | O16: =O15-K15 -> 1575 | S16: =S15-O15 -> 175 | W16: =W15-S15 -> 0
C18: Growing Crops | D18: Acres | F18: Cost/Acre | G18: $ Value | H18: Acres | J18: Cost/Acre | K18: $ Value | L18: Acres | N18: Cost/Acre | O18: $ Value | P18: Acres | R18: Cost/Acre | S18: $ Value | T18: Acres | V18: Cost/Acre | W18: $ Value
B19: Current Farm Assets | G19: =D19*F19 -> 0 | K19: =H19*J19 -> 0 | L19: 50 | N19: 45 | O19: =L19*N19 -> 2250 | P19: 60 | R19: 45 | S19: =P19*R19 -> 2700 | T19: 60 | V19: 45 | W19: =T19*V19 -> 2700
G20: =D20*F20 -> 0 | K20: =H20*J20 -> 0 | O20: =L20*N20 -> 0 | S20: =P20*R20 -> 0 | W20: =T20*V20 -> 0
G21: =D21*F21 -> 0 | K21: =H21*J21 -> 0 | O21: =L21*N21 -> 0 | S21: =P21*R21 -> 0 | W21: =T21*V21 -> 0
G22: 0 | K22: 0 | O22: 0 | S22: 0 | W22: 0
G23: 0 | K23: 0 | O23: 0 | S23: 0 | W23: 0
G24: 0 | K24: 0 | O24: 0 | S24: 0 | W24: 0
G25: 0 | K25: 0 | O25: 0 | S25: 0 | W25: 0
G26: 0 | K26: 0 | O26: 0 | S26: 0 | W26: 0
G27: 0 | K27: 0 | O27: 0 | S27: 0 | W27: 0
G28: =D28*F28 -> 0 | K28: =H28*J28 -> 0 | O28: =L28*N28 -> 0 | S28: =P28*R28 -> 0 | W28: =T28*V28 -> 0
C29: Total Value of Growing Crops | G29: =SUM(G19:G28) -> 0 | K29: =SUM(K19:K28) -> 0 | O29: =SUM(O19:O28) -> 2250 | S29: =SUM(S19:S28) -> 2700 | W29: =SUM(W19:W28) -> 2700
C30: *Growing Crop Inventory Change from Previous Year | K30: =K29-G29 -> 0 | O30: =O29-K29 -> 2250 | S30: =S29-O29 -> 450 | W30: =W29-S29 -> 0
C32: Livestock to be Sold | D32: No. | E32: Unit Weight | F32: Price per Unit | G32: $ Value | H32: No. | I32: Unit Weight | J32: Price per Unit | K32: $ Value | L32: No. | M32: Unit Weight | N32: Price per Unit | O32: $ Value | P32: No. | Q32: Unit Weight | R32: Price per Unit | S32: $ Value | T32: No. | U32: Unit Weight | V32: Price per Unit | W32: $ Value
B33: Current Farm Assets | C33: Example: Bull | D33: 1 | F33: 2000 | H33: 0 | J33: 0 | K33: =IF(I33>0,(J33*I33*H33),(J33*H33)) -> 0 | L33: 0 | N33: 0 | O33: =IF(M33>0,(N33*M33*L33),(N33*L33)) -> 0 | P33: 1 | R33: 2000 | S33: =IF(Q33>0,(R33*Q33*P33),(R33*P33)) -> 2000 | T33: 0 | V33: 0 | W33: =IF(U33>0,(V33*U33*T33),(V33*T33)) -> 0
G34: =IF(E34>0,(F34*E34*D34),(F34*D34)) -> 0 | K34: 0 | O34: 0 | S34: 0 | W34: 0
G35: 0 | K35: 0 | O35: 0 | S35: 0 | W35: 0
G36: 0 | K36: 0 | O36: 0 | S36: 0 | W36: 0
G37: 0 | K37: 0 | O37: 0 | S37: 0 | W37: 0
G38: 0 | K38: 0 | O38: 0 | S38: 0 | W38: 0
G39: 0 | K39: 0 | O39: 0 | S39: 0 | W39: 0
G40: 0 | K40: 0 | O40: 0 | S40: 0 | W40: 0
G41: 0 | K41: 0 | O41: 0 | S41: 0 | W41: 0
G42: 0 | K42: 0 | O42: 0 | S42: 0 | W42: 0
C43: Total Value of Livestock to be Sold | G43: =SUM(G33:G42) -> 0 | K43: =SUM(K33:K42) -> 0 | O43: =SUM(O33:O42) -> 0 | S43: =SUM(S33:S42) -> 2000 | W43: =SUM(W33:W42) -> 0
C44: *Livestock Inventory Change from Previous Year | K44: =K43-G43 -> 0 | O44: =O43-K43 -> 0 | S44: =S43-O43 -> 2000 | W44: =W43-S43 -> -2000
C46: Supplies and Prepaid Expenses | D46: Units | F46: Price per Unit | G46: $ Value | H46: Units | J46: Price per Unit | K46: $ Value | L46: Units | N46: Price per Unit | O46: $ Value | P46: Units | R46: Price per Unit | S46: $ Value | T46: Units | V46: Price per Unit | W46: $ Value
B47: Current Farm Assets | G47: =D47*F47 -> 0 | K47: =H47*J47 -> 0 | O47: =L47*N47 -> 0 | S47: =P47*R47 -> 0 | W47: =T47*V47 -> 0
G48: =D48*F48 -> 0 | K48: =H48*J48 -> 0 | O48: =L48*N48 -> 0 | S48: =P48*R48 -> 0 | W48: =T48*V48 -> 0
G49: =D49*F49 -> 0 | K49: =H49*J49 -> 0 | O49: =L49*N49 -> 0 | S49: =P49*R49 -> 0 | W49: =T49*V49 -> 0
G50: 0 | K50: 0 | O50: 0 | S50: 0 | W50: 0
G51: 0 | K51: 0 | O51: 0 | S51: 0 | W51: 0
G52: 0 | K52: 0 | O52: 0 | S52: 0 | W52: 0
G53: 0 | K53: 0 | O53: 0 | S53: 0 | W53: 0
G54: 0 | K54: 0 | O54: 0 | S54: 0 | W54: 0
G55: 0 | K55: 0 | O55: 0 | S55: 0 | W55: 0
G56: =D56*F56 -> 0 | K56: =H56*J56 -> 0 | O56: =L56*N56 -> 0 | S56: =P56*R56 -> 0 | W56: =T56*V56 -> 0
C57: Total Value of Supplies and Prepaid Expenses | G57: =SUM(G47:G56) -> 0 | K57: =SUM(K47:K56) -> 0 | O57: =SUM(O47:O56) -> 0 | S57: =SUM(S47:S56) -> 0 | W57: =SUM(W47:W56) -> 0
C58: *Supply & Prepaid Exp Inventory Change from Previous Year | K58: =K57-G57 -> 0 | O58: =O57-K57 -> 0 | S58: =S57-O57 -> 0 | W58: =W57-S57 -> 0
C60: Breeding Livestock | D60: No. | F60: Price per Unit | G60: $ Value | H60: No. | J60: Price per Unit | K60: $ Value | L60: No. | N60: Price per Unit | O60: $ Value | P60: No. | R60: Price per Unit | S60: $ Value | T60: No. | V60: Price per Unit | W60: $ Value
B61: Intermediate Farm Assets | G61: =D61*F61 -> 0 | K61: =H61*J61 -> 0 | L61: 6 | N61: 500 | O61: =L61*N61 -> 3000 | P61: 5 | R61: 500 | S61: =P61*R61 -> 2500 | T61: 7 | V61: 500 | W61: =T61*V61 -> 3500
G62: =D62*F62 -> 0 | K62: =H62*J62 -> 0 | O62: =L62*N62 -> 0 | S62: =P62*R62 -> 0 | W62: =T62*V62 -> 0
G63: =D63*F63 -> 0 | K63: =H63*J63 -> 0 | O63: =L63*N63 -> 0 | S63: =P63*R63 -> 0 | W63: =T63*V63 -> 0
G64: 0 | K64: 0 | O64: 0 | S64: =P64*R64 -> 0 | W64: 0
G65: 0 | K65: 0 | O65: 0 | S65: 0 | W65: 0
G66: 0 | K66: 0 | O66: 0 | S66: 0 | W66: 0
G67: 0 | K67: 0 | O67: 0 | S67: 0 | W67: 0
G68: 0 | K68: 0 | O68: 0 | S68: 0 | W68: 0
G69: 0 | K69: 0 | O69: 0 | S69: 0 | W69: 0
G70: =D70*F70 -> 0 | K70: =H70*J70 -> 0 | O70: =L70*N70 -> 0 | S70: =P70*R70 -> 0 | W70: =T70*V70 -> 0
C71: Total Breeding Livestock | G71: =SUM(G61:G70) -> 0 | K71: =SUM(K61:K70) -> 0 | O71: =SUM(O61:O70) -> 3000 | S71: =SUM(S61:S70) -> 2500 | W71: =SUM(W61:W70) -> 3500
C72: *Breeding Livestock Change from Previous Year | K72: =K71-G71 -> 0 | O72: =O71-K71 -> 3000 | S72: =S71-O71 -> -500 | W72: =W71-S71 -> 1000
C74: Accounts and Notes to be Received | G74: $ Value | K74: $ Value | O74: $ Value | S74: $ Value | W74: $ Value
C80: Accounts and Notes to be Received | G80: =SUM(G75:G79) -> 0 | K80: =SUM(K75:K79) -> 0 | O80: =SUM(O75:O79) -> 0 | S80: =SUM(S75:S79) -> 0 | W80: =SUM(W75:W79) -> 0
C81: *Accounts Receivable change from Previous Year | K81: =K80-G80 -> 0 | O81: =O80-K80 -> 0 | S81: =S80-O80 -> 0 | W81: =W80-S80 -> 0

Sheet Notes

Sheet LookupTables (hidden)
A109: Cattle Description | B109: Cost Value
A110: Crossbred 6 Mo. To Breeding | B110: 800
A111: Crossbred Bred Heifers | B111: 1600
A112: Crossbred Calves to Weaning | B112: 300
A113: Crossbred Raised Cows | B113: 1200
A114: Crossbred Weaning to 6 Mo. | B114: 550
A115: Holstein 6 Mo. To Breeding | B115: 1000
A116: Holstein Bred Heifers | B116: 1800
A117: Holstein Calves to Weaning | B117: 500
A118: Holstein Raised Cows | B118: 1400
A119: Holstein Weaning to 6 Mo. | B119: 750
A120: Jersey 6 Mo. To Breeding | B120: 800
A121: Jersey Bred Heifers | B121: 1600
A122: Jersey Calves to Weaning | B122: 300
A123: Jersey Raised Cows | B123: 1200
A124: Jersey Weaning to 6 Mo. | B124: 550
A128: Machinery and Equipment by Year of Age | B128: Cost Value Factor
A129: 0 | B129: 1
A130: 1 | B130: 0.9
A131: 2 | B131: 0.8
A132: 3 | B132: 0.7
A133: 4 | B133: 0.6
A134: 5 | B134: 0.5
A135: 6 | B135: 0.4
A136: 7 | B136: 0.3
A137: 8 | B137: 0.2
A138: 9 | B138: 0.1
A139: 10 | B139: 0
A140: 11 | B140: 0
A141: 12 | B141: 0
A142: 13 | B142: 0
A143: 14 | B143: 0
A144: 15 | B144: 0
A145: 16 | B145: 0
A146: 17 | B146: 0
A147: 18 | B147: 0
A148: 19 | B148: 0
A149: 20 | B149: 0
A150: 21 | B150: 0
A151: 22 | B151: 0
A152: 23 | B152: 0
A153: 24 | B153: 0
A154: 25 | B154: 0
A155: 26 | B155: 0
A156: 27 | B156: 0
A157: 28 | B157: 0
A158: 29 | B158: 0
A159: 30 | B159: 0
A162: Farm Buildings by Year of Age | B162: Cost Value Factor
A163: 0 | B163: 1
A164: 1 | B164: 0.95
A165: 2 | B165: 0.9
A166: 3 | B166: 0.85
A167: 4 | B167: 0.8
A168: 5 | B168: 0.75
A169: 6 | B169: 0.7
A170: 7 | B170: 0.65
A171: 8 | B171: 0.6
A172: 9 | B172: 0.55
A173: 10 | B173: 0.5
A174: 11 | B174: 0.45
A175: 12 | B175: 0.4
A176: 13 | B176: 0.35
A177: 14 | B177: 0.3
A178: 15 | B178: 0.25
A179: 16 | B179: 0.2
A180: 17 | B180: 0.15
A181: 18 | B181: 0.1
A182: 19 | B182: 0.05
A183: 20 | B183: 0
A184: 21 | B184: 0
A185: 22 | B185: 0
A186: 23 | B186: 0
A187: 24 | B187: 0
A188: 25 | B188: 0
A189: 26 | B189: 0
A190: 27 | B190: 0
A191: 28 | B191: 0
A192: 29 | B192: 0
A193: 30 | B193: 0
A194: 31 | B194: 0
A195: 32 | B195: 0
A196: 33 | B196: 0
A197: 34 | B197: 0
A198: 35 | B198: 0

Sheet Loan Calculator (hidden)
B1: Loan Calculator
C5: Enter Values | G5: Loan Summary
D6: Loan Amount | H6: Scheduled Payment | I6: =IF(Values_Entered,-PMT(Interest_Rate/Num_Pmt_Per_Year,Loan_Years*Num_Pmt_Per_Year,Loan_Amount),"") -> 
D7: Annual Interest Rate | H7: Scheduled Number of Payments | I7: =IF(Values_Entered,Loan_Years*Num_Pmt_Per_Year,"") -> 
D8: Loan Period in Years | H8: Actual Number of Payments | I8: =IF(Values_Entered,Number_of_Payments,"") -> 
D9: Number of Payments Per Year | H9: Total Early Payments | I9: =IF(Values_Entered,SUMIF(Beg_Bal,">0",Extra_Pay),"") -> 
D10: Start Date of Loan | H10: Total Interest | I10: =IF(Values_Entered,SUMIF(Beg_Bal,">0",Int),"") -> 
D11: Optional Extra Payments | H11: Annual Payment | I11: =IFERROR((Scheduled_Monthly_Payment*12),0) -> 0
C13: Lender Name:
B16: PmtNo. | C16: Payment Date | D16: Beginning Balance | E16: Scheduled Payment | F16: Extra Payment | G16: Total Payment | H16: Principal | I16: Interest | J16: Ending Balance
B18: =IF(Values_Entered,1,"") ->  | C18: =IF(Pay_Num<>"",DATE(YEAR(Loan_Start),MONTH(Loan_Start)+(Pay_Num)*12/Num_Pmt_Per_Year,DAY(Loan_Start)),"") ->  | D18: =IF(Values_Entered,Loan_Amount,"") ->  | E18: =IF(Pay_Num<>"",Scheduled_Monthly_Payment,"") ->  | F18: =IF(AND(Pay_Num<>"",Sched_Pay+Scheduled_Extra_Payments<Beg_Bal),Scheduled_Extra_Payments,IF(AND(Pay_Num<>"",Beg_Bal-Sched_Pay>0),Beg_Bal-Sched_Pay,IF(Pay_Num<>"",0,""))) ->  | G18: =IF(AND(Pay_Num<>"",Sched_Pay+Extra_Pay<Beg_Bal),Sched_Pay+Extra_Pay,IF(Pay_Num<>"",Beg_Bal,"")) ->  | H18: =IF(Pay_Num<>"",Total_Pay-Int,"") ->  | I18: =IF(Pay_Num<>"",Beg_Bal*(Interest_Rate/Num_Pmt_Per_Year),"") ->  | J18: =IF(AND(Pay_Num<>"",Sched_Pay+Extra_Pay<Beg_Bal),Beg_Bal-Princ,IF(Pay_Num<>"",0,"")) -> 
B19: =IF(Values_Entered,B18+1,"") ->  | D19: =IF(Pay_Num<>"",J18,"") ->  | E19: =IF(Pay_Num<>"",Scheduled_Monthly_Payment,"") ->  | H19: =IF(Pay_Num<>"",Total_Pay-Int,"") ->  | I19: =IF(Pay_Num<>"",Beg_Bal*Interest_Rate/Num_Pmt_Per_Year,"") -> 
D20: =IF(Pay_Num<>"",J19,"") ->  | E20: =IF(Pay_Num<>"",Scheduled_Monthly_Payment,"") -> 
D23: =IF(Pay_Num<>"",J22,"") -> 
D25: =IF(Pay_Num<>"",J24,"") -> 
C82: =IF(Pay_Num<>"",DATE(YEAR(Loan_Start),MONTH(Loan_Start)+(Pay_Num)*12/Num_Pmt_Per_Year,DAY(Loan_Start)),"") ->  | F82: =IF(AND(Pay_Num<>"",Sched_Pay+Scheduled_Extra_Payments<Beg_Bal),Scheduled_Extra_Payments,IF(AND(Pay_Num<>"",Beg_Bal-Sched_Pay>0),Beg_Bal-Sched_Pay,IF(Pay_Num<>"",0,""))) ->  | G82: =IF(AND(Pay_Num<>"",Sched_Pay+Extra_Pay<Beg_Bal),Sched_Pay+Extra_Pay,IF(Pay_Num<>"",Beg_Bal,"")) ->  | J82: =IF(AND(Pay_Num<>"",Sched_Pay+Extra_Pay<Beg_Bal),Beg_Bal-Princ,IF(Pay_Num<>"",0,"")) -> 
B83: =IF(Values_Entered,B82+1,"") ->  | H83: =IF(Pay_Num<>"",Total_Pay-Int,"") ->  | I83: =IF(Pay_Num<>"",Beg_Bal*Interest_Rate/Num_Pmt_Per_Year,"") -> 
D84: =IF(Pay_Num<>"",J83,"") ->  | E84: =IF(Pay_Num<>"",Scheduled_Monthly_Payment,"") -> 
C146: =IF(Pay_Num<>"",DATE(YEAR(Loan_Start),MONTH(Loan_Start)+(Pay_Num)*12/Num_Pmt_Per_Year,DAY(Loan_Start)),"") ->  | F146: =IF(AND(Pay_Num<>"",Sched_Pay+Scheduled_Extra_Payments<Beg_Bal),Scheduled_Extra_Payments,IF(AND(Pay_Num<>"",Beg_Bal-Sched_Pay>0),Beg_Bal-Sched_Pay,IF(Pay_Num<>"",0,""))) ->  | G146: =IF(AND(Pay_Num<>"",Sched_Pay+Extra_Pay<Beg_Bal),Sched_Pay+Extra_Pay,IF(Pay_Num<>"",Beg_Bal,"")) ->  | J146: =IF(AND(Pay_Num<>"",Sched_Pay+Extra_Pay<Beg_Bal),Beg_Bal-Princ,IF(Pay_Num<>"",0,"")) -> 
B147: =IF(Values_Entered,B146+1,"") ->  | H147: =IF(Pay_Num<>"",Total_Pay-Int,"") ->  | I147: =IF(Pay_Num<>"",Beg_Bal*Interest_Rate/Num_Pmt_Per_Year,"") -> 
D148: =IF(Pay_Num<>"",J147,"") ->  | E148: =IF(Pay_Num<>"",Scheduled_Monthly_Payment,"") -> 
C210: =IF(Pay_Num<>"",DATE(YEAR(Loan_Start),MONTH(Loan_Start)+(Pay_Num)*12/Num_Pmt_Per_Year,DAY(Loan_Start)),"") ->  | F210: =IF(AND(Pay_Num<>"",Sched_Pay+Scheduled_Extra_Payments<Beg_Bal),Scheduled_Extra_Payments,IF(AND(Pay_Num<>"",Beg_Bal-Sched_Pay>0),Beg_Bal-Sched_Pay,IF(Pay_Num<>"",0,""))) ->  | G210: =IF(AND(Pay_Num<>"",Sched_Pay+Extra_Pay<Beg_Bal),Sched_Pay+Extra_Pay,IF(Pay_Num<>"",Beg_Bal,"")) ->  | J210: =IF(AND(Pay_Num<>"",Sched_Pay+Extra_Pay<Beg_Bal),Beg_Bal-Princ,IF(Pay_Num<>"",0,"")) -> 
B211: =IF(Values_Entered,B210+1,"") ->  | H211: =IF(Pay_Num<>"",Total_Pay-Int,"") ->  | I211: =IF(Pay_Num<>"",Beg_Bal*Interest_Rate/Num_Pmt_Per_Year,"") -> 
D212: =IF(Pay_Num<>"",J211,"") ->  | E212: =IF(Pay_Num<>"",Scheduled_Monthly_Payment,"") -> 
C274: =IF(Pay_Num<>"",DATE(YEAR(Loan_Start),MONTH(Loan_Start)+(Pay_Num)*12/Num_Pmt_Per_Year,DAY(Loan_Start)),"") ->  | F274: =IF(AND(Pay_Num<>"",Sched_Pay+Scheduled_Extra_Payments<Beg_Bal),Scheduled_Extra_Payments,IF(AND(Pay_Num<>"",Beg_Bal-Sched_Pay>0),Beg_Bal-Sched_Pay,IF(Pay_Num<>"",0,""))) ->  | G274: =IF(AND(Pay_Num<>"",Sched_Pay+Extra_Pay<Beg_Bal),Sched_Pay+Extra_Pay,IF(Pay_Num<>"",Beg_Bal,"")) ->  | J274: =IF(AND(Pay_Num<>"",Sched_Pay+Extra_Pay<Beg_Bal),Beg_Bal-Princ,IF(Pay_Num<>"",0,"")) -> 
B275: =IF(Values_Entered,B274+1,"") ->  | H275: =IF(Pay_Num<>"",Total_Pay-Int,"") ->  | I275: =IF(Pay_Num<>"",Beg_Bal*Interest_Rate/Num_Pmt_Per_Year,"") -> 
D276: =IF(Pay_Num<>"",J275,"") ->  | E276: =IF(Pay_Num<>"",Scheduled_Monthly_Payment,"") -> 
C338: =IF(Pay_Num<>"",DATE(YEAR(Loan_Start),MONTH(Loan_Start)+(Pay_Num)*12/Num_Pmt_Per_Year,DAY(Loan_Start)),"") ->  | F338: =IF(AND(Pay_Num<>"",Sched_Pay+Scheduled_Extra_Payments<Beg_Bal),Scheduled_Extra_Payments,IF(AND(Pay_Num<>"",Beg_Bal-Sched_Pay>0),Beg_Bal-Sched_Pay,IF(Pay_Num<>"",0,""))) ->  | G338: =IF(AND(Pay_Num<>"",Sched_Pay+Extra_Pay<Beg_Bal),Sched_Pay+Extra_Pay,IF(Pay_Num<>"",Beg_Bal,"")) ->  | J338: =IF(AND(Pay_Num<>"",Sched_Pay+Extra_Pay<Beg_Bal),Beg_Bal-Princ,IF(Pay_Num<>"",0,"")) -> 
B339: =IF(Values_Entered,B338+1,"") ->  | H339: =IF(Pay_Num<>"",Total_Pay-Int,"") ->  | I339: =IF(Pay_Num<>"",Beg_Bal*Interest_Rate/Num_Pmt_Per_Year,"") -> 
D340: =IF(Pay_Num<>"",J339,"") ->  | E340: =IF(Pay_Num<>"",Scheduled_Monthly_Payment,"") -> 

Sheet Farm Summary (hidden)
A1: Farm Name | B1: Farm Number (Internal Use) | C1: County | D1: Person Submitting Form | E1: E-Mail of Person Submitting | F1: Phone of Person Submitting Form | G1: Primary Breed | H1: Farm Nutritionist | I1: Nutrition Company | J1: E-Mail Address to Submit Data | K1: Electrical Power Source | L1: Milk Processor | M1: Production System
A2: ='Farm Information'!$C$4 -> 0 | B2: ='Farm Information'!$C$23 -> 0 | C2: ='Farm Information'!$C$13 -> 0 | D2: ='Farm Information'!$C$15 -> 0 | E2: ='Farm Information'!$C$16 -> 0 | F2: ='Farm Information'!$C$17 -> 0 | G2: ='Farm Information'!$C$19 -> 0 | H2: ='Farm Information'!$C$21 -> 0 | I2: ='Farm Information'!$C$20 -> 0 | J2: ='Farm Information'!$C$22 -> 0 | K2: ='Farm Information'!$C$24 -> 0 | L2: ='Farm Information'!$C$26 -> 0 | M2: ='Farm Information'!$C$27 -> 0

Sheet zipcodes (hidden)
A1: Zip Code Text | B1: Preferred City Name | C1: State | D1: Primary County Name | E1: Region | F1: Modified 1A Diff | H1: ZIP Code-original
A2: 99501 | B2: ANCHORAGE | C2: AK | D2: ANCHORAGE | F2: 0 | H2: 99501
A3: 99502 | B3: ANCHORAGE | C3: AK | D3: ANCHORAGE | F3: 0 | H3: 99502
A4: 99503 | B4: ANCHORAGE | C4: AK | D4: ANCHORAGE | F4: 0 | H4: 99503
A5: 99504 | B5: ANCHORAGE | C5: AK | D5: ANCHORAGE | F5: 0 | H5: 99504
A6: 99505 | B6: FORT RICHARDSON | C6: AK | D6: ANCHORAGE | F6: 0 | H6: 99505
A7: 99506 | B7: ELMENDORF AFB | C7: AK | D7: ANCHORAGE | F7: 0 | H7: 99506
A8: 99507 | B8: ANCHORAGE | C8: AK | D8: ANCHORAGE | F8: 0 | H8: 99507
A9: 99508 | B9: ANCHORAGE | C9: AK | D9: ANCHORAGE | F9: 0 | H9: 99508
A10: 99509 | B10: ANCHORAGE | C10: AK | D10: ANCHORAGE | F10: 0 | H10: 99509
A11: 99510 | B11: ANCHORAGE | C11: AK | D11: ANCHORAGE | F11: 0 | H11: 99510
A12: 99511 | B12: ANCHORAGE | C12: AK | D12: ANCHORAGE | F12: 0 | H12: 99511
A13: 99513 | B13: ANCHORAGE | C13: AK | D13: ANCHORAGE | F13: 0 | H13: 99513
A14: 99514 | B14: ANCHORAGE | C14: AK | D14: ANCHORAGE | F14: 0 | H14: 99514
A15: 99515 | B15: ANCHORAGE | C15: AK | D15: ANCHORAGE | F15: 0 | H15: 99515
A16: 99516 | B16: ANCHORAGE | C16: AK | D16: ANCHORAGE | F16: 0 | H16: 99516
A17: 99517 | B17: ANCHORAGE | C17: AK | D17: ANCHORAGE | F17: 0 | H17: 99517
A18: 99518 | B18: ANCHORAGE | C18: AK | D18: ANCHORAGE | F18: 0 | H18: 99518
A19: 99519 | B19: ANCHORAGE | C19: AK | D19: ANCHORAGE | F19: 0 | H19: 99519
A20: 99520 | B20: ANCHORAGE | C20: AK | D20: ANCHORAGE | F20: 0 | H20: 99520
A21: 99521 | B21: ANCHORAGE | C21: AK | D21: ANCHORAGE | F21: 0 | H21: 99521
A22: 99522 | B22: ANCHORAGE | C22: AK | D22: ANCHORAGE | F22: 0 | H22: 99522
A23: 99523 | B23: ANCHORAGE | C23: AK | D23: ANCHORAGE | F23: 0 | H23: 99523
A24: 99524 | B24: ANCHORAGE | C24: AK | D24: ANCHORAGE | F24: 0 | H24: 99524
A25: 99529 | B25: ANCHORAGE | C25: AK | D25: ANCHORAGE | F25: 0 | H25: 99529
A26: 99530 | B26: ANCHORAGE | C26: AK | D26: ANCHORAGE | F26: 0 | H26: 99530
A27: 99540 | B27: INDIAN | C27: AK | D27: ANCHORAGE | F27: 0 | H27: 99540
A28: 99545 | B28: KONGIGANAK | C28: AK | D28: BETHEL | F28: 0 | H28: 99545
A29: 99546 | B29: ADAK | C29: AK | D29: ALEUTIANS WEST | F29: 0 | H29: 99546
A30: 99547 | B30: ATKA | C30: AK | D30: ALEUTIANS WEST | F30: 0 | H30: 99547
A31: 99548 | B31: CHIGNIK LAKE | C31: AK | D31: LAKE AND PENINSULA | F31: 0 | H31: 99548
A32: 99549 | B32: PORT HEIDEN | C32: AK | D32: LAKE AND PENINSULA | F32: 0 | H32: 99549
A33: 99550 | B33: PORT LIONS | C33: AK | D33: KODIAK ISLAND | F33: 0 | H33: 99550
A34: 99551 | B34: AKIACHAK | C34: AK | D34: BETHEL | F34: 0 | H34: 99551
A35: 99552 | B35: AKIAK | C35: AK | D35: BETHEL | F35: 0 | H35: 99552
A36: 99553 | B36: AKUTAN | C36: AK | D36: ALEUTIANS EAST | F36: 0 | H36: 99553
A37: 99554 | B37: ALAKANUK | C37: AK | D37: WADE HAMPTON | F37: 0 | H37: 99554
A38: 99555 | B38: ALEKNAGIK | C38: AK | D38: DILLINGHAM | F38: 0 | H38: 99555
A39: 99556 | B39: ANCHOR POINT | C39: AK | D39: KENAI PENINSULA | F39: 0 | H39: 99556
A40: 99557 | B40: ANIAK | C40: AK | D40: BETHEL | F40: 0 | H40: 99557
A41: 99558 | B41: ANVIK | C41: AK | D41: YUKON KOYUKUK | F41: 0 | H41: 99558
A42: 99559 | B42: BETHEL | C42: AK | D42: BETHEL | F42: 0 | H42: 99559
A43: 99561 | B43: CHEFORNAK | C43: AK | D43: BETHEL | F43: 0 | H43: 99561
A44: 99563 | B44: CHEVAK | C44: AK | D44: WADE HAMPTON | F44: 0 | H44: 99563
A45: 99564 | B45: CHIGNIK | C45: AK | D45: LAKE AND PENINSULA | F45: 0 | H45: 99564
A46: 99565 | B46: CHIGNIK LAGOON | C46: AK | D46: LAKE AND PENINSULA | F46: 0 | H46: 99565
A47: 99566 | B47: CHITINA | C47: AK | D47: VALDEZ CORDOVA | F47: 0 | H47: 99566
A48: 99567 | B48: CHUGIAK | C48: AK | D48: ANCHORAGE | F48: 0 | H48: 99567
A49: 99568 | B49: CLAM GULCH | C49: AK | D49: KENAI PENINSULA | F49: 0 | H49: 99568
A50: 99569 | B50: CLARKS POINT | C50: AK | D50: DILLINGHAM | F50: 0 | H50: 99569
A51: 99571 | B51: COLD BAY | C51: AK | D51: ALEUTIANS EAST | F51: 0 | H51: 99571
A52: 99572 | B52: COOPER LANDING | C52: AK | D52: KENAI PENINSULA | F52: 0 | H52: 99572
A53: 99573 | B53: COPPER CENTER | C53: AK | D53: VALDEZ CORDOVA | F53: 0 | H53: 99573
A54: 99574 | B54: CORDOVA | C54: AK | D54: VALDEZ CORDOVA | F54: 0 | H54: 99574
A55: 99575 | B55: CROOKED CREEK | C55: AK | D55: BETHEL | F55: 0 | H55: 99575
A56: 99576 | B56: DILLINGHAM | C56: AK | D56: DILLINGHAM | F56: 0 | H56: 99576
A57: 99577 | B57: EAGLE RIVER | C57: AK | D57: ANCHORAGE | F57: 0 | H57: 99577
A58: 99578 | B58: EEK | C58: AK | D58: BETHEL | F58: 0 | H58: 99578
A59: 99579 | B59: EGEGIK | C59: AK | D59: LAKE AND PENINSULA | F59: 0 | H59: 99579
A60: 99580 | B60: EKWOK | C60: AK | D60: DILLINGHAM | F60: 0 | H60: 99580
A61: 99581 | B61: EMMONAK | C61: AK | D61: WADE HAMPTON | F61: 0 | H61: 99581
A62: 99583 | B62: FALSE PASS | C62: AK | D62: ALEUTIANS EAST | F62: 0 | H62: 99583
A63: 99585 | B63: MARSHALL | C63: AK | D63: WADE HAMPTON | F63: 0 | H63: 99585
A64: 99586 | B64: GAKONA | C64: AK | D64: VALDEZ CORDOVA | F64: 0 | H64: 99586
A65: 99587 | B65: GIRDWOOD | C65: AK | D65: ANCHORAGE | F65: 0 | H65: 99587
A66: 99588 | B66: GLENNALLEN | C66: AK | D66: VALDEZ CORDOVA | F66: 0 | H66: 99588
A67: 99589 | B67: GOODNEWS BAY | C67: AK | D67: BETHEL | F67: 0 | H67: 99589
A68: 99590 | B68: GRAYLING | C68: AK | D68: YUKON KOYUKUK | F68: 0 | H68: 99590
A69: 99591 | B69: SAINT GEORGE ISLAND | C69: AK | D69: ALEUTIANS WEST | F69: 0 | H69: 99591
A70: 99599 | B70: ANCHORAGE | C70: AK | D70: ANCHORAGE | F70: 0 | H70: 99599
A71: 99602 | B71: HOLY CROSS | C71: AK | D71: YUKON KOYUKUK | F71: 0 | H71: 99602
A72: 99603 | B72: HOMER | C72: AK | D72: KENAI PENINSULA | F72: 0 | H72: 99603
A73: 99604 | B73: HOOPER BAY | C73: AK | D73: WADE HAMPTON | F73: 0 | H73: 99604
A74: 99605 | B74: HOPE | C74: AK | D74: KENAI PENINSULA | F74: 0 | H74: 99605
A75: 99606 | B75: ILIAMNA | C75: AK | D75: LAKE AND PENINSULA | F75: 0 | H75: 99606
A76: 99607 | B76: KALSKAG | C76: AK | D76: BETHEL | F76: 0 | H76: 99607
A77: 99608 | B77: KARLUK | C77: AK | D77: KODIAK ISLAND | F77: 0 | H77: 99608
A78: 99609 | B78: KASIGLUK | C78: AK | D78: BETHEL | F78: 0 | H78: 99609
A79: 99610 | B79: KASILOF | C79: AK | D79: KENAI PENINSULA | F79: 0 | H79: 99610
A80: 99611 | B80: KENAI | C80: AK | D80: KENAI PENINSULA | F80: 0 | H80: 99611
A81: 99612 | B81: KING COVE | C81: AK | D81: ALEUTIANS EAST | F81: 0 | H81: 99612
A82: 99613 | B82: KING SALMON | C82: AK | D82: BRISTOL BAY | F82: 0 | H82: 99613
A83: 99614 | B83: KIPNUK | C83: AK | D83: BETHEL | F83: 0 | H83: 99614
A84: 99615 | B84: KODIAK | C84: AK | D84: KODIAK ISLAND | F84: 0 | H84: 99615
A85: 99619 | B85: KODIAK | C85: AK | D85: KODIAK ISLAND | F85: 0 | H85: 99619
A86: 99620 | B86: KOTLIK | C86: AK | D86: WADE HAMPTON | F86: 0 | H86: 99620
A87: 99621 | B87: KWETHLUK | C87: AK | D87: BETHEL | F87: 0 | H87: 99621
A88: 99622 | B88: KWIGILLINGOK | C88: AK | D88: BETHEL | F88: 0 | H88: 99622
A89: 99624 | B89: LARSEN BAY | C89: AK | D89: KODIAK ISLAND | F89: 0 | H89: 99624
A90: 99625 | B90: LEVELOCK | C90: AK | D90: LAKE AND PENINSULA | F90: 0 | H90: 99625
A91: 99626 | B91: LOWER KALSKAG | C91: AK | D91: BETHEL | F91: 0 | H91: 99626
A92: 99627 | B92: MC GRATH | C92: AK | D92: YUKON KOYUKUK | F92: 0 | H92: 99627
A93: 99628 | B93: MANOKOTAK | C93: AK | D93: DILLINGHAM | F93: 0 | H93: 99628
A94: 99629 | B94: WASILLA | C94: AK | D94: MATANUSKA SUSITNA | F94: 0 | H94: 99629
A95: 99630 | B95: MEKORYUK | C95: AK | D95: BETHEL | F95: 0 | H95: 99630
A96: 99631 | B96: MOOSE PASS | C96: AK | D96: KENAI PENINSULA | F96: 0 | H96: 99631
A97: 99632 | B97: MOUNTAIN VILLAGE | C97: AK | D97: WADE HAMPTON | F97: 0 | H97: 99632
A98: 99633 | B98: NAKNEK | C98: AK | D98: BRISTOL BAY | F98: 0 | H98: 99633
A99: 99634 | B99: NAPAKIAK | C99: AK | D99: BETHEL | F99: 0 | H99: 99634
A100: 99635 | B100: NIKISKI | C100: AK | D100: KENAI PENINSULA | F100: 0 | H100: 99635
A101: 99636 | B101: NEW STUYAHOK | C101: AK | D101: DILLINGHAM | F101: 0 | H101: 99636
A102: 99637 | B102: TOKSOOK BAY | C102: AK | D102: BETHEL | F102: 0 | H102: 99637
A103: 99638 | B103: NIKOLSKI | C103: AK | D103: ALEUTIANS WEST | F103: 0 | H103: 99638
A104: 99639 | B104: NINILCHIK | C104: AK | D104: KENAI PENINSULA | F104: 0 | H104: 99639
A105: 99640 | B105: NONDALTON | C105: AK | D105: LAKE AND PENINSULA | F105: 0 | H105: 99640
A106: 99641 | B106: NUNAPITCHUK | C106: AK | D106: BETHEL | F106: 0 | H106: 99641
A107: 99643 | B107: OLD HARBOR | C107: AK | D107: KODIAK ISLAND | F107: 0 | H107: 99643
A108: 99644 | B108: OUZINKIE | C108: AK | D108: KODIAK ISLAND | F108: 0 | H108: 99644
A109: 99645 | B109: PALMER | C109: AK | D109: MATANUSKA SUSITNA | F109: 0 | H109: 99645
A110: 99647 | B110: PEDRO BAY | C110: AK | D110: LAKE AND PENINSULA | F110: 0 | H110: 99647
A111: 99648 | B111: PERRYVILLE | C111: AK | D111: LAKE AND PENINSULA | F111: 0 | H111: 99648
A112: 99649 | B112: PILOT POINT | C112: AK | D112: LAKE AND PENINSULA | F112: 0 | H112: 99649
A113: 99650 | B113: PILOT STATION | C113: AK | D113: WADE HAMPTON | F113: 0 | H113: 99650
A114: 99651 | B114: PLATINUM | C114: AK | D114: BETHEL | F114: 0 | H114: 99651
A115: 99652 | B115: BIG LAKE | C115: AK | D115: MATANUSKA SUSITNA | F115: 0 | H115: 99652
A116: 99653 | B116: PORT ALSWORTH | C116: AK | D116: LAKE AND PENINSULA | F116: 0 | H116: 99653
A117: 99654 | B117: WASILLA | C117: AK | D117: MATANUSKA SUSITNA | F117: 0 | H117: 99654
A118: 99655 | B118: QUINHAGAK | C118: AK | D118: BETHEL | F118: 0 | H118: 99655
A119: 99656 | B119: RED DEVIL | C119: AK | D119: BETHEL | F119: 0 | H119: 99656
A120: 99657 | B120: RUSSIAN MISSION | C120: AK | D120: WADE HAMPTON | F120: 0 | H120: 99657
A121: 99658 | B121: SAINT MARYS | C121: AK | D121: WADE HAMPTON | F121: 0 | H121: 99658
A122: 99659 | B122: SAINT MICHAEL | C122: AK | D122: NOME | F122: 0 | H122: 99659
A123: 99660 | B123: SAINT PAUL ISLAND | C123: AK | D123: ALEUTIANS WEST | F123: 0 | H123: 99660
A124: 99661 | B124: SAND POINT | C124: AK | D124: ALEUTIANS EAST | F124: 0 | H124: 99661
A125: 99662 | B125: SCAMMON BAY | C125: AK | D125: WADE HAMPTON | F125: 0 | H125: 99662
A126: 99663 | B126: SELDOVIA | C126: AK | D126: KENAI PENINSULA | F126: 0 | H126: 99663
A127: 99664 | B127: SEWARD | C127: AK | D127: KENAI PENINSULA | F127: 0 | H127: 99664
A128: 99665 | B128: SHAGELUK | C128: AK | D128: YUKON KOYUKUK | F128: 0 | H128: 99665
A129: 99666 | B129: NUNAM IQUA | C129: AK | D129: WADE HAMPTON | F129: 0 | H129: 99666
A130: 99667 | B130: SKWENTNA | C130: AK | D130: MATANUSKA SUSITNA | F130: 0 | H130: 99667
A131: 99668 | B131: SLEETMUTE | C131: AK | D131: BETHEL | F131: 0 | H131: 99668
A132: 99669 | B132: SOLDOTNA | C132: AK | D132: KENAI PENINSULA | F132: 0 | H132: 99669
A133: 99670 | B133: SOUTH NAKNEK | C133: AK | D133: BRISTOL BAY | F133: 0 | H133: 99670
A134: 99671 | B134: STEBBINS | C134: AK | D134: NOME | F134: 0 | H134: 99671
A135: 99672 | B135: STERLING | C135: AK | D135: KENAI PENINSULA | F135: 0 | H135: 99672
A136: 99674 | B136: SUTTON | C136: AK | D136: MATANUSKA SUSITNA | F136: 0 | H136: 99674
A137: 99675 | B137: TAKOTNA | C137: AK | D137: YUKON KOYUKUK | F137: 0 | H137: 99675
A138: 99676 | B138: TALKEETNA | C138: AK | D138: MATANUSKA SUSITNA | F138: 0 | H138: 99676
A139: 99677 | B139: TATITLEK | C139: AK | D139: VALDEZ CORDOVA | F139: 0 | H139: 99677
A140: 99678 | B140: TOGIAK | C140: AK | D140: DILLINGHAM | F140: 0 | H140: 99678
A141: 99679 | B141: TULUKSAK | C141: AK | D141: BETHEL | F141: 0 | H141: 99679
A142: 99680 | B142: TUNTUTULIAK | C142: AK | D142: BETHEL | F142: 0 | H142: 99680
A143: 99681 | B143: TUNUNAK | C143: AK | D143: BETHEL | F143: 0 | H143: 99681
A144: 99682 | B144: TYONEK | C144: AK | D144: KENAI PENINSULA | F144: 0 | H144: 99682
A145: 99683 | B145: TRAPPER CREEK | C145: AK | D145: MATANUSKA SUSITNA | F145: 0 | H145: 99683
A146: 99684 | B146: UNALAKLEET | C146: AK | D146: NOME | F146: 0 | H146: 99684
A147: 99685 | B147: UNALASKA | C147: AK | D147: ALEUTIANS WEST | F147: 0 | H147: 99685
A148: 99686 | B148: VALDEZ | C148: AK | D148: VALDEZ CORDOVA | F148: 0 | H148: 99686
A149: 99687 | B149: WASILLA | C149: AK | D149: MATANUSKA SUSITNA | F149: 0 | H149: 99687
A150: 99688 | B150: WILLOW | C150: AK | D150: MATANUSKA SUSITNA | F150: 0 | H150: 99688
A151: 99689 | B151: YAKUTAT | C151: AK | D151: YAKUTAT | F151: 0 | H151: 99689
A152: 99690 | B152: NIGHTMUTE | C152: AK | D152: BETHEL | F152: 0 | H152: 99690
A153: 99691 | B153: NIKOLAI | C153: AK | D153: YUKON KOYUKUK | F153: 0 | H153: 99691
A154: 99692 | B154: DUTCH HARBOR | C154: AK | D154: ALEUTIANS WEST | F154: 0 | H154: 99692
A155: 99693 | B155: WHITTIER | C155: AK | D155: VALDEZ CORDOVA | F155: 0 | H155: 99693
A156: 99694 | B156: HOUSTON | C156: AK | D156: MATANUSKA SUSITNA | F156: 0 | H156: 99694
A157: 99695 | B157: ANCHORAGE | C157: AK | D157: ANCHORAGE | F157: 0 | H157: 99695
A158: 99697 | B158: KODIAK | C158: AK | D158: KODIAK ISLAND | F158: 0 | H158: 99697
A159: 99701 | B159: FAIRBANKS | C159: AK | D159: FAIRBANKS NORTH STAR | F159: 0 | H159: 99701
A160: 99702 | B160: EIELSON AFB | C160: AK | D160: FAIRBANKS NORTH STAR | F160: 0 | H160: 99702
A161: 99703 | B161: FORT WAINWRIGHT | C161: AK | D161: FAIRBANKS NORTH STAR | F161: 0 | H161: 99703
A162: 99704 | B162: CLEAR | C162: AK | D162: DENALI | F162: 0 | H162: 99704
A163: 99705 | B163: NORTH POLE | C163: AK | D163: FAIRBANKS NORTH STAR | F163: 0 | H163: 99705
A164: 99706 | B164: FAIRBANKS | C164: AK | D164: FAIRBANKS NORTH STAR | F164: 0 | H164: 99706
A165: 99707 | B165: FAIRBANKS | C165: AK | D165: FAIRBANKS NORTH STAR | F165: 0 | H165: 99707
A166: 99708 | B166: FAIRBANKS | C166: AK | D166: FAIRBANKS NORTH STAR | F166: 0 | H166: 99708
A167: 99709 | B167: FAIRBANKS | C167: AK | D167: FAIRBANKS NORTH STAR | F167: 0 | H167: 99709
A168: 99710 | B168: FAIRBANKS | C168: AK | D168: FAIRBANKS NORTH STAR | F168: 0 | H168: 99710
A169: 99711 | B169: FAIRBANKS | C169: AK | D169: FAIRBANKS NORTH STAR | F169: 0 | H169: 99711
A170: 99712 | B170: FAIRBANKS | C170: AK | D170: FAIRBANKS NORTH STAR | F170: 0 | H170: 99712
A171: 99714 | B171: SALCHA | C171: AK | D171: FAIRBANKS NORTH STAR | F171: 0 | H171: 99714
A172: 99716 | B172: TWO RIVERS | C172: AK | D172: FAIRBANKS NORTH STAR | F172: 0 | H172: 99716
A173: 99720 | B173: ALLAKAKET | C173: AK | D173: YUKON KOYUKUK | F173: 0 | H173: 99720
A174: 99721 | B174: ANAKTUVUK PASS | C174: AK | D174: NORTH SLOPE | F174: 0 | H174: 99721
A175: 99722 | B175: ARCTIC VILLAGE | C175: AK | D175: YUKON KOYUKUK | F175: 0 | H175: 99722
A176: 99723 | B176: BARROW | C176: AK | D176: NORTH SLOPE | F176: 0 | H176: 99723
A177: 99724 | B177: BEAVER | C177: AK | D177: YUKON KOYUKUK | F177: 0 | H177: 99724
A178: 99725 | B178: ESTER | C178: AK | D178: FAIRBANKS NORTH STAR | F178: 0 | H178: 99725
A179: 99726 | B179: BETTLES FIELD | C179: AK | D179: YUKON KOYUKUK | F179: 0 | H179: 99726
A180: 99727 | B180: BUCKLAND | C180: AK | D180: NORTHWEST ARCTIC | F180: 0 | H180: 99727
A181: 99729 | B181: CANTWELL | C181: AK | D181: DENALI | F181: 0 | H181: 99729
A182: 99730 | B182: CENTRAL | C182: AK | D182: YUKON KOYUKUK | F182: 0 | H182: 99730
A183: 99731 | B183: FORT GREELY | C183: AK | D183: SOUTHEAST FAIRBANKS | F183: 0 | H183: 99731
A184: 99732 | B184: CHICKEN | C184: AK | D184: SOUTHEAST FAIRBANKS | F184: 0 | H184: 99732
A185: 99733 | B185: CIRCLE | C185: AK | D185: YUKON KOYUKUK | F185: 0 | H185: 99733
A186: 99734 | B186: PRUDHOE BAY | C186: AK | D186: NORTH SLOPE | F186: 0 | H186: 99734
A187: 99736 | B187: DEERING | C187: AK | D187: NORTHWEST ARCTIC | F187: 0 | H187: 99736
A188: 99737 | B188: DELTA JUNCTION | C188: AK | D188: SOUTHEAST FAIRBANKS | F188: 0 | H188: 99737
A189: 99738 | B189: EAGLE | C189: AK | D189: SOUTHEAST FAIRBANKS | F189: 0 | H189: 99738
A190: 99739 | B190: ELIM | C190: AK | D190: NOME | F190: 0 | H190: 99739
A191: 99740 | B191: FORT YUKON | C191: AK | D191: YUKON KOYUKUK | F191: 0 | H191: 99740
A192: 99741 | B192: GALENA | C192: AK | D192: YUKON KOYUKUK | F192: 0 | H192: 99741
A193: 99742 | B193: GAMBELL | C193: AK | D193: NOME | F193: 0 | H193: 99742
A194: 99743 | B194: HEALY | C194: AK | D194: DENALI | F194: 0 | H194: 99743
A195: 99744 | B195: ANDERSON | C195: AK | D195: DENALI | F195: 0 | H195: 99744
A196: 99745 | B196: HUGHES | C196: AK | D196: YUKON KOYUKUK | F196: 0 | H196: 99745
A197: 99746 | B197: HUSLIA | C197: AK | D197: YUKON KOYUKUK | F197: 0 | H197: 99746
A198: 99747 | B198: KAKTOVIK | C198: AK | D198: NORTH SLOPE | F198: 0 | H198: 99747
A199: 99748 | B199: KALTAG | C199: AK | D199: YUKON KOYUKUK | F199: 0 | H199: 99748
A200: 99749 | B200: KIANA | C200: AK | D200: NORTHWEST ARCTIC | F200: 0 | H200: 99749
... 4300 more rows

Sheet Calculations (hidden)
A1: Income Statement
I2: 2014 Plan Summaries | J2: 9 | K2: 10 | L2: 11 | M2: 12 | N2: 13 | O2: 14 | P2: 15 | Q2: 16 | R2: 17 | S2: 18 | T2: 19 | U2: 20 | V2: 21 | W2: 22 | X2: 23 | Y2: 24 | Z2: 25 | AA2: 26
J3: Dairy Enterprise | R3: Whole Farm
J4: 16 | K4: 18 | L4: 19 | M4: 20 | N4: 22 | O4: 22.01
A5: Gross Cash farm income (excludes capital gains and losses) | C5: =SUM(#REF!) ->  | J5: <$16 | K5: $16-$18 | L5: $18-$19 | M5: $19-$20 | N5: $20-$22 | O5: >$22 | P5: Average | R5: <$16 | S5: $16-$18 | T5: $18-$19 | U5: $19-$20 | V5: $20-$22 | W5: >$22 | X5: Average
I6: Milk Sold per Total Cows | J6: 24224.84591 | K6: 22692.55563 | L6: 24459.953 | M6: 23332.28684 | N6: 22638.83418 | O6: 19315.46672 | P6: 22515.4695 | R6: 22655.35884 | S6: 23348.03114 | T6: 23164.95708 | U6: 23520.93041 | V6: 22021.2226 | W6: 18152.06423 | X6: 22515
A7: gains or losses | C7: =#REF! ->  | I7: Total Milk Inflow | J7: 5047.613296 | K7: 4722.42771 | L7: 4807.552209 | M7: 4913.769686 | N7: 4912.723622 | O7: 4276.279847 | P7: 4764.825373 | R7: 4761.336667 | S7: 4767.439048 | T7: 4815.47 | U7: 5041.887333 | V7: 4726.489444 | W7: 4209.96 | X7: 4764.825432
I8: Total Non-Milk Inflow | J8: 284.5045601 | K8: 336.0563515 | L8: 297.5063133 | M8: 294.907661 | N8: 290.3590609 | O8: 258.0368357 | P8: 293.6189023 | R8: 802.3408333 | S8: 681.4795238 | T8: 481.37375 | U8: 487.724 | V8: 582.9105556 | W8: 679.8171429 | X8: 621.6928395
I9: Total Inflow | J9: 5332.117856 | K9: 5058.484062 | L9: 5105.058522 | M9: 5208.677347 | N9: 5203.082683 | O9: 4534.316683 | P9: 5058.444275 | R9: 5563.6775 | S9: 5448.918571 | T9: 5296.84375 | U9: 5529.611333 | V9: 5309.4 | W9: 4889.777143 | X9: 5386.518272
A11: change in crops and feed | C11: =#REF! ->  | I11: Crop Direct Expenses | J11: 674.087995 | K11: 794.3661047 | L11: 730.7177433 | M11: 803.123854 | N11: 801.3947092 | O11: 1008.543127 | P11: 821.9006503 | R11: 354.6233333 | S11: 465.53 | T11: 408.62625 | U11: 433.9266667 | V11: 417.5911111 | W11: 539.2371429 | X11: 433.3434568
A12: change in market livestock | C12: =#REF! ->  | I12: Milking Cow Purchased Concentrates | J12: 998.7857143 | K12: 941.2678571 | L12: 1219.951429 | M12: 1148.474545 | N12: 1174.089375 | O12: 1031.062667 | P12: 1089.218765 | R12: 863.1425 | S12: 1022.928571 | T12: 1047.575 | U12: 1348.386 | V12: 1182.594444 | W12: 927.7742857 | X12: 1089.218765
A13: Change in accounts receivable | C13: =#REF! ->  | I13: Milking Cow Purchased Forages | J13: 10.41142857 | K13: 38.85714286 | L13: 39.31285714 | M13: 32.04590909 | N13: 96.99 | O13: 85.31066667 | P13: 54.67382716 | R13: 19.15583333 | S13: 40.65 | T13: 11.1375 | U13: 28.29733333 | V13: 135.3094444 | W13: 56.56142857 | X13: 54.67382716
A14: Change in other assets | C14: =#REF!+#REF! ->  | I14: Heifer and Dry Cow Purchased Concentrates | J14: 193.6157143 | K14: 311.1135714 | L14: 210.8871429 | M14: 343.8131818 | N14: 304.838125 | O14: 329.3333333 | P14: 303.3137037 | R14: 224.0325 | S14: 309.0766667 | T14: 336.22125 | U14: 308.8793333 | V14: 309.6344444 | W14: 356.1471429 | X14: 303.3137037
A15: change in breeding livestock | C15: =#REF! ->  | I15: Heifer & Dry Cow Purchased Forages | J15: 34.66857143 | K15: 95.85928571 | L15: 34.28 | M15: 79.47272727 | N15: 119.625 | O15: 62.78 | P15: 79.36753086 | R15: 65.97666667 | S15: 69.72238095 | T15: 81.2425 | U15: 77.422 | V15: 130.8105556 | W15: 1.002857143 | X15: 79.36753086
A16: Gross farm income | C16: =SUM(C5:C15) ->  | I16: Total Feed | J16: 1911.569424 | K16: 2181.463962 | L16: 2235.149172 | M16: 2406.930218 | N16: 2496.937209 | O16: 2517.029794 | P16: 2348.474477 | R16: 1526.930833 | S16: 1907.907619 | T16: 1884.8025 | U16: 2196.911333 | V16: 2175.94 | W16: 1880.722857 | X16: 1959.917284
A18: Cash operating expense | B18: =#REF!-#REF! ->  | I18: Dairy Expenses | J18: 628.3492846 | K18: 691.3044155 | L18: 888.2512005 | M18: 763.4552582 | N18: 824.4807309 | O18: 725.9008535 | P18: 755.1936468 | R18: 636.4925 | S18: 760.34 | T18: 769.70875 | U18: 822.1473333 | V18: 797.9711111 | W18: 687.1471429 | X18: 756.4004938
A19: Change in prepaid exp and supplies | B19: =-(#REF!) ->  | I19: Overhead Expenses | J19: 640.8304877 | K19: 581.4516752 | L19: 822.0012991 | M19: 817.5563006 | N19: 861.2903461 | O19: 1041.083998 | P19: 811.8924702 | R19: 884.6575 | S19: 916.4390476 | T19: 1188.02125 | U19: 1208.594 | V19: 1242.380556 | W19: 1585.23 | X19: 1122.884568
A20: Change in growing crops | B20: =-(#REF!) ->  | I20: Owner Draw | J20: 233.7255228 | K20: 254.4245503 | L20: 197.0229816 | M20: 310.904881 | N20: 306.4800474 | O20: 269.2700267 | P20: 276.0471824 | R20: 385.7683333 | S20: 333.2847619 | T20: 340.57125 | U20: 260.954 | V20: 348.8111111 | W20: 281.7542857 | X20: 327.3822222
A21: Change in accounts payable | B21: =-(#REF!) ->  | I21: Loan Payments | J21: 514.5001655 | K21: 518.3681743 | L21: 680.2349602 | M21: 562.5870056 | N21: 507.0608473 | O21: 525.782672 | P21: 543.1719516 | R21: 640.4991667 | S21: 725.5352381 | T21: 553.32375 | U21: 561.1193333 | V21: 657.6172222 | W21: 738.4271429 | X21: 651.5025926
A22: Depreciation | B22: =-(#REF!) ->  | I22: Expenses Other than Feed | J22: 2017.405461 | K22: 2045.548815 | L22: 2587.510441 | M22: 2454.503445 | N22: 2499.311972 | O22: 2562.03755 | P22: 2386.305251 | R22: 2547.4175 | S22: 2735.599048 | T22: 2851.625 | U22: 2852.814667 | V22: 3046.78 | W22: 3292.558571 | X22: 2858.169877
A23: Total operating expense | C23: =SUM(B18:B22) -> 
A24: Interest paid | B24: =#REF! ->  | I24: Total Outflow | J24: 3928.974884 | K24: 4227.012777 | L24: 4822.659613 | M24: 4861.433663 | N24: 4996.249181 | O24: 5079.067344 | P24: 4734.779728 | R24: 4074.348333 | S24: 4643.506667 | T24: 4736.4275 | U24: 5049.726 | V24: 5222.72 | W24: 5173.281429 | X24: 4818.08716
A25: Change in accrued interest | B25: =-(#REF!) ->  | D25: Term | E25: Operating
A26: Total interest expense | C26: =SUM(B24:B25) ->  | D26: =C26-E26 ->  | E26: =#REF! ->  | I26: Gross Milk Price Breakeven per CWT | J26: 14.70428571 | K26: 16.92571429 | L26: 18.47285714 | M26: 19.49136364 | N26: 20.71625 | O26: 25.11533333 | P26: 19.82962963 | R26: 14.49833333 | S26: 16.85142857 | T26: 18.3625 | U26: 19.31533333 | V26: 21.09944444 | W26: 25.26428571 | X26: 18.77938272
A27: Total Expenses | C27: =SUM(C18:C26) ->  | I27: IOFC Breakeven (per Cow per day) | J27: 6.117142857 | K27: 6.64 | L27: 8.385714286 | M27: 8.313636364 | N27: 8.514375 | O27: 9.374 | P27: 8.076790123 | R27: 5.5575 | S27: 6.71047619 | T27: 7.40625 | U27: 7.882 | V27: 8.491111111 | W27: 8.318571429 | X27: 7.36
I28: Gross Margin to Guarantee per CWT. | J28: 8.108571429 | K28: 9.552857143 | L28: 10.76142857 | M28: 11.43772727 | N28: 12.083125 | O28: 14.84333333 | P28: 11.52395062 | R28: 7.859166667 | S28: 9.296190476 | T28: 9.9975 | U28: 10.74266667 | V28: 12.01222222 | W28: 14.49285714 | X28: 10.47308642
A29: Net farm income | C29: =C16-C27 -> 
I30: Total Inflow - Total Outflow | J30: 1403.142972 | K30: 831.4712846 | L30: 282.3989091 | M30: 347.2436837 | N30: 206.8335021 | O30: -544.7506612 | P30: 323.664547 | R30: 1489.329167 | S30: 805.4119048 | T30: 560.41625 | U30: 479.8853333 | V30: 86.68 | W30: -283.5042857 | X30: 568.4311111
B31: Begin | C31: End | D31: Change
A32: Market Valuation Equity | B32: ='Beginning Balance Sheet'!M62-'Beginning Balance Sheet'!L62-'Beginning Balance Sheet'!Z59 -> 0 | C32: ='Ending Balance Sheet'!M62-'Ending Balance Sheet'!L62-'Ending Balance Sheet'!Z59 -> 0 | D32: =C32-B32 -> 0 | I32: Crop Summaries
I33: Crop Group | J33: BE Min | K33: BE Max | L33: BE Group Label | M33: Yield per Acre | N33: Total Costs/Ton | O33: Sort | P33: Unit
B34: Cost | C34: Market | I34: alfalfa hay | J34: 0 | K34: 5 | L34: <5 | M34: =M38*0.53 -> 4.112195547 | N34: =N38/0.53 -> 91.25202463 | O34: 1 | P34: T/A
A35: Net farm income | B35: =C29 ->  | C35: =C29 ->  | I35: alfalfa hay | J35: 5 | K35: 6 | L35: 5-6 | M35: =M39*0.53 -> 6.55846681 | N35: =N39/0.53 -> 94.94463961 | O35: 2 | P35: T/A
A36: Change in market valuation | C36: =D32 -> 0 | I36: alfalfa hay | J36: 6 | K36: 100 | L36: >6 | M36: =M40*0.53 -> 9.245998532 | N36: 63.15770005 | O36: 3 | P36: T/A
A37: Net farm income from operations | B37: =B35-B36 ->  | C37: =C35+C36 ->  | I37: alfalfa hay | L37: Average | M37: =M41*0.53 -> 5.622190025 | N37: 86.01912369 | O37: 4
A38: Interest expense | B38: =C26 ->  | C38: =B38 ->  | I38: alfalfa haylage | J38: 0 | K38: 11 | L38: <11 | M38: 7.758859523 | N38: 48.36357306 | O38: 1 | P38: T/A
A39: Value of unpaid oper labor/mgt | B39: =#REF! ->  | C39: =B39 ->  | I39: alfalfa haylage | J39: 11 | K39: 14 | L39: 11-14 | M39: 12.37446568 | N39: 50.32065899 | O39: 2 | P39: T/A
A40: Return on farm assets | B40: =C29+B38-B39 ->  | C40: =C37+C38-C39 ->  | I40: alfalfa haylage | J40: 14 | K40: 100 | L40: >14 | M40: 17.44528025 | N40: 33.47358103 | O40: 3 | P40: T/A
A41: Average farm assets | B41: =AVERAGE('Beginning Balance Sheet'!L60,'Ending Balance Sheet'!L60) -> 0 | C41: =AVERAGE('Beginning Balance Sheet'!M60,'Ending Balance Sheet'!M60) -> 0 | I41: alfalfa haylage | L41: Average | M41: 10.60790571 | N41: 45.59013556 | O41: 4
A42: Return on farm equity | B42: =B37-B39 ->  | C42: =C37-C39 ->  | I42: corn grain | J42: 0 | K42: 145 | L42: <145 | M42: 95.43518519 | N42: 3.925620743 | O42: 1 | P42: Bu./A
A43: Average farm net worth | B43: =AVERAGE('Beginning Balance Sheet'!Z65,'Ending Balance Sheet'!Z65) -> 0 | C43: =AVERAGE('Beginning Balance Sheet'!Z66,'Ending Balance Sheet'!Z66) -> 0 | D43: ='Ending Balance Sheet'!L62-'Ending Balance Sheet'!Z55 -> 0 | F43: ='Beginning Balance Sheet'!M62-'Beginning Balance Sheet'!Z60 -> 0 | G43: =AVERAGE('Beginning Balance Sheet'!L62-'Beginning Balance Sheet'!Z60) -> 0 | H43: ='Ending Balance Sheet'!L62-'Ending Balance Sheet'!Z60 -> 0 | I43: corn grain | J43: 145 | K43: 179 | L43: 145-179 | M43: 164.47114 | N43: 3.083502217 | O43: 2 | P43: Bu./A
B44: see balance sheet for avg farm net worth | D44: ='Beginning Balance Sheet'!Z65 -> 0 | E44: ='Ending Balance Sheet'!Z65 -> 0 | F44: =AVERAGE(D44:E44) -> 0 | G44: ='Beginning Balance Sheet'!V61 -> 0 | H44: ='Ending Balance Sheet'!V61 -> 0 | I44: corn grain | J44: 179 | K44: 600 | L44: >179 | M44: 201.9817584 | N44: 2.027865872 | O44: 3 | P44: Bu./A
A45: Liquidity Measures: | B45: Begin | C45: End | D45: ='Beginning Balance Sheet'!Z66 -> 0 | E45: ='Ending Balance Sheet'!Z66 -> 0 | F45: =AVERAGE(D45:E45) -> 0 | I45: corn grain | L45: Average | M45: 175.8297397 | N45: 2.526151602 | O45: 4
A46: Current assets | B46: ='Beginning Balance Sheet'!M35 -> 0 | C46: ='Ending Balance Sheet'!M35 -> 0 | I46: corn silage | J46: 0 | K46: 18 | L46: <18 | M46: 15.51707933 | N46: 27.34505337 | O46: 1 | P46: T/A
A47: Current liabilities | B47: ='Beginning Balance Sheet'!Z29 -> 0 | C47: ='Ending Balance Sheet'!Z29 -> 0 | I47: corn silage | J47: 18 | K47: 22 | L47: 18-22 | M47: 20.0012401 | N47: 25.75518527 | O47: 2 | P47: T/A
A48: Current ratio | B48: =IFERROR(B46/B47,) -> 0 | C48: =IFERROR(C46/C47,) -> 0 | I48: corn silage | J48: 22 | K48: 100 | L48: >22 | M48: 25.21015305 | N48: 21.33724158 | O48: 3 | P48: T/A
A49: Working Capital | B49: =B46-B47 -> 0 | C49: =C46-C47 -> 0 | I49: corn silage | L49: Average | M49: 21.36950592 | N49: 23.69368631 | O49: 4
A50: Working Capital to gross revenues | B50: =IFERROR(B49/C16*100,) -> 0 | C50: =IFERROR(C49/C16*100,) -> 0 | I50: grass hay | J50: 0 | K50: 3 | L50: <3 | M50: 1.709341949 | N50: 87.75131725 | O50: 1 | P50: T/A
I51: grass hay | J51: 3 | K51: 4 | L51: 3-4 | M51: 3.38555 | N51: 88.61818613 | O51: 2 | P51: T/A
B52: Begin | C52: End | G52: =SUM(G43:G44) -> 0 | H52: =SUM(H43:H44) -> 0 | I52: grass hay | J52: 4 | K52: 100 | L52: >4 | M52: 4.657980952 | N52: 64.39292704 | O52: 3 | P52: T/A
A53: Total Assets | B53: ='Beginning Balance Sheet'!M62 -> 0 | C53: ='Ending Balance Sheet'!M62 -> 0 | D53: =AVERAGE(B53:C53) -> 0 | I53: grass hay | L53: Average | M53: 2.594473141 | N53: 84.91690276 | O53: 4
A54: Total Liabilities | B54: ='Beginning Balance Sheet'!Z60 -> 0 | C54: ='Ending Balance Sheet'!Z60 -> 0 | D54: =AVERAGE(B54:C54) -> 0 | I54: grass silage | J54: =J50*2.25 -> 0 | K54: =K50*2.25 -> 6.75 | L54: <7 | M54: =M50*2.25 -> 3.846019386 | N54: =N50/2.25 -> 39.00058545 | O54: 1 | P54: T/A
A55: Net Worth | B55: =B53-B54 -> 0 | C55: =C53-C54 -> 0 | D55: =AVERAGE(B55:C55) -> 0 | I55: grass silage | J55: =J51*2.25 -> 6.75 | K55: 9 | L55: 7-9 | M55: =M51*2.25 -> 7.6174875 | N55: =N51/2.25 -> 39.3858605 | O55: 2 | P55: T/A
A56: Net Worth Change | C56: =C55-B55 -> 0 | I56: grass silage | J56: =J52*2.25 -> 9 | K56: 225 | L56: >9 | M56: 10.48045714 | N56: 28.61907868 | O56: 3 | P56: T/A
A57: Debt to Equity Ratio | B57: =IFERROR(B54/B55,) -> 0 | C57: =IFERROR(C54/C55,) -> 0 | I57: grass silage | L57: Average | M57: 5.837564568 | N57: 37.74084567 | O57: 4
A58: Total Liab + Current Princ Due | B58: =B54+'Beginning Balance Sheet'!Z28 -> 0 | C58: =C54+'Ending Balance Sheet'!Z28 -> 0 | I58: pasture | J58: =J50*4.5 -> 0 | K58: =K50*4.5 -> 13.5 | L58: <14 | M58: =M50*4.5 -> 7.692038772 | N58: =N50/4.5 -> 19.50029272 | O58: 1 | P58: T/A
A59: Current debt to assets | B59: =IFERROR(B47/B46*100,) -> 0 | C59: =IFERROR(C47/C46*100,) -> 0 | I59: pasture | J59: =J51*4.5 -> 13.5 | K59: 18 | L59: 14-18 | M59: =M51*4.5 -> 15.234975 | N59: =N51/4.5 -> 19.69293025 | O59: 2 | P59: T/A
A60: Total debt to assets ratio | B60: =IFERROR(B54/B53*100,) -> 0 | C60: =IFERROR(C54/C53*100,) -> 0 | I60: pasture | J60: =J52*4.5 -> 18 | K60: 450 | L60: >18 | M60: 20.96091429 | N60: 14.30953934 | O60: 3 | P60: T/A
I61: pasture | L61: average | M61: =M53*4.5 -> 11.67512914 | N61: 18.87042284 | O61: 4
A62: Value of Farm Production | I62: HM shelled corn | J62: 0 | K62: 4.5 | L62: <4.5 | M62: 4.040203373 | N62: 62.92743727 | O62: 1 | P62: T/A
A63: =C5 ->  | B63: Gross Cash farm income | I63: HM shelled corn | J63: 4.5 | K63: 6 | L63: 4.5-6 | M63: 5.080968992 | N63: 61.58014452 | O63: 2 | P63: T/A
A64: =-IF('Beginning Balance Sheet'!Q2="Livestock",#REF!,) -> 0 | B64: -Feeder livestock purchased | I64: HM shelled corn | J64: 6 | K64: 100 | L64: >6 | M64: 6.541918312 | N64: 69.41407874 | O64: 3 | P64: T/A
A65: =-IF('Beginning Balance Sheet'!Q2="Livestock",#REF!,IF('Beginning Balance Sheet'!Q2="Dairy",SUM(#REF!),)) ->  | B65: -Purchased feed | I65: HM shelled corn | L65: Average | M65: 5.515076612 | N65: 66.09676713 | O65: 4
A66: =SUM(#REF!,#REF!) ->  | B66: +Inventory Change (crop/feed, market livestock, breeding livestock, acct receivable) | I66: small grain silage | J66: 0 | K66: 6 | L66: <6 | M66: 3.704987211 | N66: 64.10730594 | O66: 1 | P66: T/A
A67: =#REF!+#REF! ->  | B67: +Change in Other Intermediate and Long Term Assets | I67: small grain silage | J67: 6 | K67: 7 | L67: 6-7 | M67: 6.2798048 | N67: 47.95227256 | O67: 2 | P67: T/A
A68: =C17 -> 0 | B68: +Gains and losses | I68: small grain silage | J68: 7 | K68: 100 | L68: >7 | M68: 8.630752381 | N68: 32.70949986 | O68: 3 | P68: T/A
A69: =SUM(A63:A68) ->  | B69: Value of Farm Production | I69: small grain silage | L69: Average | M69: 5.799613204 | N69: 45.51492804 | O69: 4
A70: Operating Profit Margin | I70: soybean | J70: 0 | K70: 40 | L70: <40 | M70: 32.4 | N70: 7.113329446 | O70: 1 | P70: Bu./A
A71: Return on farm assets | B71: =C29+C26-#REF! ->  | C71: =C40 ->  | I71: soybean | J71: 40 | K71: 55 | L71: 40-55 | M71: 46.07119497 | N71: 6.462286037 | O71: 2 | P71: Bu./A
A72: Value of farm production | B72: =A69 ->  | C72: =A69 ->  | I72: soybean | J72: 55 | K72: 500 | L72: >55 | M72: 64.68077601 | N72: 5.320407298 | O72: 3 | P72: Bu./A
A73: Operating Profit Margin | B73: =IFERROR(B71/B72*100,) -> 0 | C73: =IFERROR(C71/C72*100,) -> 0 | I73: soybean | L73: Average | M73: 49.26894512 | N73: 6.096126319 | O73: 4
I74: summer annuals | J74: 0 | K74: 4 | L74: <4 | M74: 3.569444444 | N74: 50.05007782 | O74: 1 | P74: T/A
A75: Asset Turnover Rate | I75: summer annuals | J75: 4 | K75: 8 | L75: 4-8 | M75: 7.711538462 | N75: 30.32960848 | O75: 2 | P75: T/A
A76: Value of farm production | B76: =A69 ->  | C76: =B76 ->  | I76: summer annuals | J76: 8 | K76: 100 | L76: >8 | M76: 15.34411765 | N76: 19.70240751 | O76: 3 | P76: T/A
A77: Average farm assets | B77: =Calculations!B41 -> 0 | C77: =C41 -> 0 | I77: summer annuals | L77: Average | M77: 9.936151332 | N77: 25.18196297 | O77: 4
B78: =IFERROR(B76/B77*100,) -> 0 | C78: =IFERROR(C76/C77*100,) -> 0
A81: Repayment Capacity
B82: Cost | C82: Market
A83: Net farm income from operations | B83: =C29 ->  | C83: =B83+D32 -> 
A84: Depreciation | B84: =-#REF! -> 
A85: Personal income | B85: =#REF! -> 
A86: Family living expense | B86: =#REF! -> 
A87: Income taxes | B87: =#REF! -> 
A88: Interest on term debt | B88: =IF(#REF!>0,#REF!,D26) -> 
A89: Capital Debt repayment capacity | B89: =B83+B84+B85-B86-B87+B88 -> 
A90: Scheduled term debt payments | B90: =SUM('Beginning Balance Sheet'!T33:U43,'Beginning Balance Sheet'!T48:U52) -> 0
A91: Capital Debt repayment margin | B91: =B89-B90 -> 
A92: Cash replacement allowance | B92: =#REF! -> 
A93: Replacement margin | B93: =B91-B92 -> 
A95: Term debt coverage ratio | B95: =IFERROR(B89/B90,) -> 0
A96: Replacement coverage ratio | B96: =IFERROR(B89/(B90+B92),) -> 0
A98: Operating Expense Ratio
A99: Total farm operating exp - interest | B99: =C23 -> 
A100: -Depreciation | B100: =-#REF! -> 
A101: /Gross farm income | B101: =C16 -> 
B102: =IFERROR(((B99-B100)/B101)*100,) -> 0
A104: Depreciation Expense Ratio
A105: Depreciation | B105: =-#REF! -> 
A106: Gross farm income | B106: =C16 -> 
B107: =IFERROR((B105/B106)*100,) -> 0
A109: Farm Interest expense Ratio
A110: Interest Expense | B110: =C26 -> 
A111: Gross farm income | B111: =C16 -> 
B112: =IFERROR((B110/B111)*100,) -> 0
A114: Net Farm Income Ratio
A115: Net Farm income | B115: =C29 -> 
A116: Gross Farm income | B116: =C16 -> 
B117: =IFERROR((B115/B116)*100,) -> 0

Sheet Ex_Inputs (hidden)
A1: 1
B2: Corn Silage | G2: 2871 | J2: 55
B3: Grass Hay | G3: 38 | J3: 200
B4: Alfalfa Haylage | G4: 72 | J4: 70
B5: Alfalfa Hay | G5: 119 | J5: 150
A6: 2
B7: Dairy Cows | D7: 257 | F7: 1400 | H7: 1400
B8: Heifers Birth-6 mos. | D8: 39 | F8: 650 | H8: 650
B9: 6-12 mos. | D9: 80 | F9: 950 | H9: 950
B10: 12 mos.-Freshening | D10: 80 | F10: 1300 | H10: 1300
A11: 3
B12: 1700000 | C12: 2400000
B14: 406243 | C14: 520663
A15: 4
B16: 12060
B17: 14734
B21: 12950
B23: 36125
A24: 5
B25: Credit Card | E25: 20000 | M25: 20000
B27: Credit Card | E27: 5998 | M27: 5998
B28: Line of Credit | C28: 5.5 | E28: 48000 | M28: 48000
A29: 6
B30: FSA | C30: 2.75 | D30: 32343 | G30: 5457 | I30: 4714 | L30: 2020
B31: Individual | C31: 2.99 | D31: 90000 | G31: 2243 | I31: 5 | L31: 2022
A32: 7
B33: Bank-Mortgage | C33: 7.25 | D33: 920292 | G33: 81528 | I33: 15128 | L33: 2025
B34: FSA 4409 | C34: 2.5 | D34: 97966 | G34: 23904 | I34: 21615 | L34: 2030
B35: FSA 4410 | C35: 3 | D35: 196798
B36: FSA 4411 | C36: 3.375 | D36: 150000 | G36: 17769 | I36: 8524
B37: Individual | C37: 3.75 | D37: 249756 | G37: 8030 | I37: 3000
A38: 8
B39: Corn Silage | G39: 3500 | J39: 55
B40: Grass Hay | G40: 289 | J40: 200
B41: Small Grain Silage | G41: 350 | J41: 45
A42: 9
B43: Dairy Cows | D43: 244 | F43: 1400 | H43: 1400
B44: Heifers Birth-6 mos. | D44: 80 | F44: 650 | H44: 650
B45: 6-12 mos. | D45: 77 | F45: 950 | H45: 950
B46: 12 mos.-Freshening | D46: 67 | F46: 1300 | H46: 1300
A47: 10
B48: 1700000 | C48: 2400000
B50: 385930 | C50: 494630
A51: 11
B52: 74682
B53: 28399
B54: 5000
B56: 4700
B57: 11237
B59: 50921
B61: 14270
A62: 12
B63: Credit Card | E63: 3000 | M63: 3000
B65: Credit Card | E65: 3100 | M65: 3100
B66: Credit Card | E66: 22734 | M66: 22734
B67: Line of Credit | C67: 5.5 | E67: 48000 | M67: 48000
B68: Individual | E68: 15000 | M68: 15000
A69: 13
B70: FSA | C70: 6 | D70: 27721 | G70: 5457 | I70: 4755 | L70: 2020
B71: Individual | C71: 2.99 | D71: 89500 | G71: 2243 | I71: 18 | L71: 2022
A72: 14
B73: Bank-Mortgage | C73: 7.25 | D73: 906385 | G73: 81528 | I73: 16165 | L73: 2025
B74: FSA 4409 | C74: 2.5 | D74: 100812 | F74: 850 | G74: 11000 | I74: 3601 | L74: 2030
B75: FSA 4410 | C75: 3 | D75: 145795 | G75: 12904 | I75: 5500 | L75: 2025
B76: FSA 4411 | C76: 3.375 | D76: 150000 | G76: 8030 | I76: 12344 | L76: 2030
B77: Individual | C77: 3.75 | D77: 242084 | G77: 17769 | I77: 8817 | L77: 2030
A78: 15 | B78: Accrual | C78: Cash
A79: Patronage Dividend | B79: 1302 | C79: 1301
A80: Govt. Dairy Payments MPP/LGM | B80: 33704 | C80: 33704
A81: Other Government Payments
A82: Milk Sales | B82: 894449.46 | C82: 894449.46
A83: Cull Cows | B83: 100700 | C83: 100700
A84: Bull Calves | B84: 1800 | C84: 1800
A85: Dairy Sales
A86: Crop Sales
A96: Custom work income
A97: Other Farm Income | B97: 2500.73 | C97: 2500.73
A98: Capital Gain/Loss
A99: Crop Direct Expenses: | B99: 16-accrual | C99: cash
A100: Seed | B100: 26001.98 | C100: 15733.63
A101: Fertilizer | B101: 6942.61 | C101: 6942.61
A102: Chemical
A103: Crop Custom Hire | B103: 68371.56 | C103: 36201.61
A104: Purchased Feed Expenses
A105: Purchased Milking Cow Feed | B105: 300685.84 | C105: 258518.04
A106: Pur Dry Cow & Heifer Feed | B106: 41992.42 | C106: 41992.42
A107: Dairy Expenses
A108: Breeding and Registration | B108: 20160 | C108: 20160
A109: Veterinarian & Medicine | B109: 15043.67 | C109: 15043.67
A110: bST
A111: Supplies | B111: 28190 | C111: 28190
A112: DHIA Testing | B112: 2872.35 | C112: 2872.35
A113: Contract Heifer Raising
A114: Dairy Custom Hire | B114: 23363.8 | C114: 13020
A115: Milk Hauling | B115: 42718 | C115: 42718
A116: Milk Marketing | B116: 13778 | C116: 13778
A117: Bedding | B117: 38926.23 | C117: 38926.23
A118: Overhead Expenses
A119: Fuel and Oil | B119: 22413 | C119: 22412
A120: Repairs | B120: 39560.1 | C120: 32411
A121: Land Rent | B121: 145000 | C121: 145000
A122: Hired Labor - Hourly Wages | B122: 35264 | C122: 35264
A123: Machinery Leases | B123: 900 | C123: 900
A124: Building Leases
A125: Real Estate Taxes | B125: 12255 | C125: 12254
A126: Insurance | B126: 27612 | C126: 27611
A127: Utilities | B127: 29727 | C127: 29727
A128: Risk Management | B128: 12950 | C128: 1713
A129: Dues and Professional Fees | B129: 785 | C129: 785
A130: Miscellaneous | B130: 21069.15 | C130: 21069.15
A132: Interest Paid | B132: 81993 | C132: 81991
A133: Payroll Expenses
A134: Reconciliation Discrepancies

Sheet SheetNames (hidden)
A1: Sheet Name | B1: Data entry | C1: Group | D1: Tab Color
A2: Farm Information | B2: x | C2: General | D2: =VLOOKUP(C2,$F$2:$G$12,2,FALSE) -> Yellow | F2: General | G2: Yellow
A3: Rations and Crops | B3: x | C3: Cash Flow | D3: Purple | F3: Cash Flow | G3: Purple
A4: Annual Cash Flow | B4: x | C4: Cash Flow | D4: Purple | F4: Cash Flow Tool | G4: light purple
A5: Annualized Ration | B5: x | C5: Cash Flow Tool | D5: light purple | F5: Income Statement | G5: Yellow
A6: Cash Flow Summary | B6: x | C6: Cash Flow | D6: Purple | F6: Month Track | G6: Green
A7: Feed Management BMP | B7: x | C7: Cash Flow | D7: Purple | F7: Month Track Tool | G7: light green
A8: Historical Data | B8: x | C8: Cash Flow Tool | D8: light purple | F8: Price Data | G8: blue
A9: Planned vs Actual Annual | B9: x | C9: Cash Flow Tool | D9: light purple | F9: Database | G9: red
A10: IOFC and Cash Flow | B10: x | C10: Cash Flow Tool | D10: light purple | F10: Lookup | G10: Grey
A11: Track Historical IOFC | B11: x | C11: Cash Flow | D11: Purple
A12: Inputs | B12: x | C12: Cash Flow Tool | D12: light purple
A13: Notes (2) | B13: x | C13: General | D13: Yellow
A14: Herd Inventory | B14: x | C14: General | D14: Yellow
A15: Beginning Balance Sheet | B15: x | C15: Income Statement | D15: Yellow
A16: Ending Balance Sheet | B16: x | C16: Income Statement | D16: Yellow
A17: Year End Adjustments | B17: x | C17: Income Statement | D17: Yellow
A18: Scorecard | B18: x | C18: Income Statement | D18: Yellow
A19: Dairy Data | B19: x | C19: Month Track | D19: Green
A20: Monthly Cash Flow | B20: x | C20: Month Track | D20: Green
A21: Year-to-Date | C21: Month Track Tool | D21: light green
A22: Planned vs Actual Monthly | B22: x | C22: Month Track Tool | D22: light green
A23: LGM Summary | B23: x | C23: Price Data | D23: blue
A24: Pricing Data | B24: x | C24: Price Data | D24: blue
A25: Loan Calculator | B25: x | C25: Price Data | D25: blue
A26: LGM Buying Strategy | B26: x | C26: Price Data | D26: blue
A27: Summary Per CWT. | C27: Database | D27: red
A28: Summary Per Cow | C28: Database | D28: red
A29: Crop Summary | C29: Database | D29: red
A30: Farm Summary | C30: Database | D30: red
A31: FeedPriceHistory | C31: Lookup | D31: Grey
A32: zipcodes | C32: Lookup | D32: Grey
A33: Calculations | C33: Lookup | D33: Grey
A34: Ex_Inputs | C34: Lookup | D34: Grey
A35: RationArchive | C35: Lookup | D35: Grey
A36: Storage | C36: Lookup | D36: Grey
A37: Silo | C37: Lookup | D37: Grey
